Workbook

Sheet Macro Data
B5: Decom Inflation | C5: 0.04051859947
B7: Total Contribution | C7: 6758605
B8: Plant Contribution | D8: =ROUND(C7-D9,0) -> 6323396
B9: ISFSI Contribution | D9: =ROUND('Fund Proj - ISFSI'!D12,0) -> 435209
B10: Difference | E10: =C7-SUM(D8:D9) -> 0
B12: Ending Balance
B13: Plant | C13: ='Fund Proj - Plant'!D9 -> 0.0001097247005
B14: ISFSI | C14: ='Fund Proj - ISFSI'!D9 -> -1.676380634e-08
B15: Total | C15: =SUM(C13:C14) -> 0.0001097079366
B28: Ending balance < $0.001? "0" = Yes; "1" = No | C28: =IF(ABS(C15)<0.001,0,1) -> 0

Sheet Decom Expense Proj
B2: Ameren Missouri
B3: Callaway Energy Center Tax-Qualified Nuclear Decommissioning Trust Fund Projection
B4: Missouri Jurisdiction
B5: Decommissioning Expense Calculation
B7: Decommissioning Cost Estimate
G8: Plant Decommissioning | L8: ISFSI Decommissioning | N8: Combined Plant & ISFSI Decommissioning
B9: License Termination Decommissioning Expenditures | G9: 766145000 | L9: 7761000 | N9: =G9+L9 -> 773906000
B10: Spent Fuel Management Decommissioning Expenditures | G10: 68391000 | L10: 0 | N10: =G10+L10 -> 68391000
B11: Site Restoration Decommissioning Expenditures | G11: 99760000 | L11: 1408000 | N11: =G11+L11 -> 101168000
B12: Total Decommissioning Cost Estimate: | G12: =SUM(G9:G11) -> 934296000 | L12: =SUM(L9:L11) -> 9169000 | N12: =SUM(N9:N11) -> 943465000
B14: Estimate in Terms of Year xxxx Dollars | G14: 2017 | L14: 2017
B16: Estimate Based On: | G16: August 2017 TLG Study | L16: August 2017 TLG Study | N16: August 2017 TLG Study
B18: Decommissioning Inflation: | G18: ='Macro Data'!C5 -> 0.04051859947 | L18: =G18 -> 0.04051859947 | N18: =G18 -> 0.04051859947
D20: DECOMMISSIONING EXPENSE CALCULATION | I20: DECOMMISSIONING EXPENSE CALCULATION | N20: DECOMMISSIONING EXPENSE CALCULATION
D21: PLANT DECOMMISSIONING | I21: ISFSI DECOMMISSIONING | N21: COMBINED
F23: Inflation Factor At | K23: Inflation Factor At
D24: =G14&"$" -> 2017$ | E24: # of | F24: =G18 -> 0.04051859947 | G24: (Inflated $$) | I24: =L14&"$" -> 2017$ | J24: # of | K24: =L18 -> 0.04051859947 | L24: (Inflated $$) | N24: (Inflated $$)
D25: Decommissioning | E25: Years of | F25: Decommissioning | G25: Decommissioning | I25: Decommissioning | J25: Years of | K25: Decommissioning | L25: Decommissioning | N25: Decommissioning
B26: Year | D26: Expenses | E26: Inflation | F26: Inflation Rate | G26: Expenses | I26: Expenses | J26: Inflation | K26: Inflation Rate | L26: Expenses | N26: Expenses
B28: TOTALS: | D28: =SUM(D30:D129) -> 934296000 | G28: =SUM(G30:G129) -> 3177105756 | I28: =SUM(I30:I129) -> 9169000 | L28: =SUM(L30:L129) -> 34218485.78 | N28: =G28+L28 -> 3211324241
B30: 2017 | D30: 0 | E30: =B30-G$14 -> 0 | F30: =(1+G$18)^E30 -> 1 | G30: =D30*F30 -> 0 | I30: 0 | J30: =B30-L$14 -> 0 | K30: =(1+L$18)^J30 -> 1 | L30: =I30*K30 -> 0 | N30: =G30+L30 -> 0
B31: =B30+1 -> 2018 | D31: 0 | E31: 1 | F31: 1.040518599 | G31: 0 | I31: 0 | J31: =B31-L$14 -> 1 | K31: =(1+L$18)^J31 -> 1.040518599 | L31: 0 | N31: =G31+L31 -> 0
B32: =B31+1 -> 2019 | D32: 0 | E32: 2 | F32: 1.082678956 | G32: 0 | I32: 0 | J32: 2 | K32: 1.082678956 | L32: 0 | N32: 0
B33: 2020 | D33: 0 | E33: 3 | F33: 1.126547591 | G33: 0 | I33: 0 | J33: 3 | K33: 1.126547591 | L33: 0 | N33: 0
B34: 2021 | D34: 0 | E34: 4 | F34: 1.172193721 | G34: 0 | I34: 0 | J34: 4 | K34: 1.172193721 | L34: 0 | N34: 0
B35: 2022 | D35: 0 | E35: 5 | F35: 1.219689369 | G35: 0 | I35: 0 | J35: 5 | K35: 1.219689369 | L35: 0 | N35: 0
B36: 2023 | D36: 0 | E36: 6 | F36: 1.269109474 | G36: 0 | I36: 0 | J36: 6 | K36: 1.269109474 | L36: 0 | N36: 0
B37: 2024 | D37: 0 | E37: 7 | F37: 1.320532013 | G37: 0 | I37: 0 | J37: 7 | K37: 1.320532013 | L37: 0 | N37: 0
B38: 2025 | D38: 0 | E38: 8 | F38: 1.374038121 | G38: 0 | I38: 0 | J38: 8 | K38: 1.374038121 | L38: 0 | N38: 0
B39: 2026 | D39: 0 | E39: 9 | F39: 1.429712221 | G39: 0 | I39: 0 | J39: 9 | K39: 1.429712221 | L39: 0 | N39: 0
B40: 2027 | D40: 0 | E40: 10 | F40: 1.487642158 | G40: 0 | I40: 0 | J40: 10 | K40: 1.487642158 | L40: 0 | N40: 0
B41: 2028 | D41: 0 | E41: 11 | F41: 1.547919334 | G41: 0 | I41: 0 | J41: 11 | K41: 1.547919334 | L41: 0 | N41: 0
B42: 2029 | D42: 0 | E42: 12 | F42: 1.610638858 | G42: 0 | I42: 0 | J42: 12 | K42: 1.610638858 | L42: 0 | N42: 0
B43: 2030 | D43: 0 | E43: 13 | F43: 1.675899689 | G43: 0 | I43: 0 | J43: 13 | K43: 1.675899689 | L43: 0 | N43: 0
B44: 2031 | D44: 0 | E44: 14 | F44: 1.743804797 | G44: 0 | I44: 0 | J44: 14 | K44: 1.743804797 | L44: 0 | N44: 0
B45: 2032 | D45: 0 | E45: 15 | F45: 1.814461325 | G45: 0 | I45: 0 | J45: 15 | K45: 1.814461325 | L45: 0 | N45: 0
B46: 2033 | D46: 0 | E46: 16 | F46: 1.887980757 | G46: 0 | I46: 0 | J46: 16 | K46: 1.887980757 | L46: 0 | N46: 0
B47: 2034 | D47: 0 | E47: 17 | F47: 1.964479093 | G47: 0 | I47: 0 | J47: 17 | K47: 1.964479093 | L47: 0 | N47: 0
B48: 2035 | D48: 0 | E48: 18 | F48: 2.044077034 | G48: 0 | I48: 0 | J48: 18 | K48: 2.044077034 | L48: 0 | N48: 0
B49: 2036 | D49: 0 | E49: 19 | F49: 2.126900173 | G49: 0 | I49: 0 | J49: 19 | K49: 2.126900173 | L49: 0 | N49: 0
B50: 2037 | D50: 0 | E50: 20 | F50: 2.213079189 | G50: 0 | I50: 0 | J50: 20 | K50: 2.213079189 | L50: 0 | N50: 0
B51: 2038 | D51: 0 | E51: 21 | F51: 2.302750059 | G51: 0 | I51: 0 | J51: 21 | K51: 2.302750059 | L51: 0 | N51: 0
B52: 2039 | D52: 0 | E52: 22 | F52: 2.396054266 | G52: 0 | I52: 0 | J52: 22 | K52: 2.396054266 | L52: 0 | N52: 0
B53: 2040 | D53: 0 | E53: 23 | F53: 2.493139029 | G53: 0 | I53: 0 | J53: 23 | K53: 2.493139029 | L53: 0 | N53: 0
B54: 2041 | D54: 0 | E54: 24 | F54: 2.594157531 | G54: 0 | I54: 0 | J54: 24 | K54: 2.594157531 | L54: 0 | N54: 0
B55: 2042 | D55: 0 | E55: 25 | F55: 2.699269161 | G55: 0 | I55: 0 | J55: 25 | K55: 2.699269161 | L55: 0 | N55: 0
B56: 2043 | D56: 0 | E56: 26 | F56: 2.808639767 | G56: 0 | I56: 0 | J56: 26 | K56: 2.808639767 | L56: 0 | N56: 0
B57: 2044 | D57: 19847000 | E57: 27 | F57: 2.922441917 | G57: 58001704.72 | I57: 0 | J57: 27 | K57: 2.922441917 | L57: 0 | N57: 58001704.72
B58: 2045 | D58: 110325000 | E58: 28 | F58: 3.04085517 | G58: 335482346.6 | I58: 0 | J58: 28 | K58: 3.04085517 | L58: 0 | N58: 335482346.6
B59: 2046 | D59: 179004000 | E59: 29 | F59: 3.164066363 | G59: 566380535.2 | I59: 0 | J59: 29 | K59: 3.164066363 | L59: 0 | N59: 566380535.2
B60: 2047 | D60: 185633000 | E60: 30 | F60: 3.2922699 | G60: 611153938.4 | I60: 0 | J60: 30 | K60: 3.2922699 | L60: 0 | N60: 611153938.4
B61: 2048 | D61: 126322000 | E61: 31 | F61: 3.425668066 | G61: 432737241.4 | I61: 0 | J61: 31 | K61: 3.425668066 | L61: 0 | N61: 432737241.4
B62: 2049 | D62: 119868000 | E62: 32 | F62: 3.564471338 | G62: 427266050.4 | I62: 0 | J62: 32 | K62: 3.564471338 | L62: 0 | N62: 427266050.4
B63: 2050 | D63: =89318000-7761000 -> 81557000 | E63: 33 | F63: 3.708898725 | G63: 302486653.3 | I63: 7761000 | J63: 33 | K63: 3.708898725 | L63: 28784763 | N63: 331271416.3
B64: 2051 | D64: =46360000-1408000 -> 44952000 | E64: 34 | F64: 3.859178106 | G64: 173477774.2 | I64: 1408000 | J64: 34 | K64: 3.859178106 | L64: 5433722.774 | N64: 178911497
B65: 2052 | D65: 54931000 | E65: 35 | F65: 4.015546598 | G65: 220577990.2 | I65: 0 | J65: 35 | K65: 4.015546598 | L65: 0 | N65: 220577990.2
B66: 2053 | D66: 11857000 | E66: 36 | F66: 4.178250923 | G66: 49541521.19 | I66: 0 | J66: 36 | K66: 4.178250923 | L66: 0 | N66: 49541521.19
B67: 2054 | D67: 0 | E67: 37 | F67: 4.347547798 | G67: 0 | I67: 0 | J67: 37 | K67: 4.347547798 | L67: 0 | N67: 0
B68: 2055 | D68: 0 | E68: 38 | F68: 4.523704346 | G68: 0 | I68: 0 | J68: 38 | K68: 4.523704346 | L68: 0 | N68: 0
B69: =B68+1 -> 2056 | D69: 0 | E69: 39 | F69: 4.706998511 | G69: 0 | I69: 0 | J69: 39 | K69: 4.706998511 | L69: 0 | N69: 0

Sheet Fund Proj - Plant
B2: Ameren Missouri
B3: Callaway Energy Center Tax-Qualified Nuclear Decommissioning Trust Fund Projection
B4: Missouri Jurisdiction
B5: Plant Decommissioning Fund Projection
B8: 2017-06-30 | C8: Fund Balance: | D8: 594889944.4 | E8: Equity Allocation: | G8: 0.65 | H8: Federal Income Tax Rate: | K8: 0.2
B9: 2053-12-31 | C9: EOY Fund Balance: | D9: =J69 -> 0.0001097247005 | E9: Bond Allocation: | G9: 0.35 | H9: Missouri State Income Tax Rate: | K9: 0
E10: Switch Out of Equities at End-Of-Year: | G10: 2043 | H10: Percentage of Federal Taxes Deductible on MO Taxes: | K10: 0.5
B11: Current contribution: | D11: 6314620 | H11: Composite Federal & State Income Tax Rate: | K11: =(K8+K9-(K8*K9*(1+K10)))/(1-(K8*K9*K10)) -> 0.2
B12: Revised contribution: | D12: ='Macro Data'!D8 -> 6323396 | E12: Nominal Pre-Tax & Expense Returns
E13: Bonds: | G13: 0.039 | H13: Management & Trust Fees: (BP) | K13: 15
B14: CPI Inflation: | D14: 0.022 | E14: Equities: | G14: 0.086
B15: Decommissioning Inflation: | D15: ='Macro Data'!C5 -> 0.04051859947 | E15: Weighted Average - Bonds & Equities: | G15: =(G8*G14)+(G9*G13) -> 0.06955
B17: Effective Date of Revised Annual Contribution | E17: Real Pre-Tax & Expense Returns
C18: Year: | D18: 2018 | E18: Bonds: | G18: =G13-D14 -> 0.017
C19: Quarter: | D19: 1 | E19: Equities: | G19: =G14-D14 -> 0.064
E20: Weighted Average - Bonds & Equities: | G20: =G15-D14 -> 0.04755
B23: Fund Projections
D24: Annual
D25: Cash Inflow From | F25: Investment
D26: Contributions | E26: Pre | F26: Management | G26: Federal & State | H26: After | I26: Decommissioning
B27: Year Ending | C27: Beginning-of-Year | D27: To | E27: Tax & Fee | F27: & Trust | G27: Income | H27: Tax & Fee | I27: Expenses | J27: End-Of-Year
B28: December 31, 20xx | C28: Balance | D28: Fund | E28: Income | F28: Fees | G28: Taxes | H28: Income | I28: (Inflated $$) | J28: Balance
B30: TOTAL | D30: =SUM(D33:D72) -> 174198646.7 | E30: 3087302257 | F30: 77280801.65 | G30: 602004291.1 | H30: 2408017164 | I30: 3177105756
B32: =B8 -> 2017-06-30 | J32: =D8 -> 594889944.4
B33: 2017 | C33: =J32 -> 594889944.4 | D33: =((2/4)*D11) -> 3157310 | E33: =((C33+(D33/2)-(I33/2))*(6/12))*(IF(B33<=G$10,G$15,G$13)) -> 20742195.55 | F33: =(K$13/10000)*((C33+(D33/2)+(E33/2)-(I33/2))*(6/12)) -> 455129.7729 | G33: =K$11*(E33-F33) -> 4057413.155 | H33: =E33-F33-G33 -> 16229652.62 | I33: ='Decom Expense Proj'!G30 -> 0 | J33: =C33+D33+H33-I33 -> 614276907.1
B34: =B33+1 -> 2018 | C34: =J33 -> 614276907.1 | D34: =((1/4)*D11)+((3/4)*D12) -> 6321202 | E34: =((C34+(D34/2)-(I34/2))*(12/12))*(IF(B34<=G$10,G$15,G$13)) -> 42942778.69 | F34: =(K$13/10000)*((C34+(D34/2)+(E34/2)-(I34/2))*(12/12)) -> 958363.3461 | G34: =K$11*(E34-F34) -> 8396883.068 | H34: 33587532.27 | I34: ='Decom Expense Proj'!G31 -> 0 | J34: 654185641.3
B35: 2019 | C35: 654185641.3 | D35: =D$12 -> 6323396 | E35: 45718507.45 | F35: =(K$13/10000)*((C35+(D35/2)+(E35/2)-(I35/2))*(12/12)) -> 1020309.89 | G35: 8939639.512 | H35: 35758558.05 | I35: ='Decom Expense Proj'!G32 -> 0 | J35: 696267595.4
B36: 2020 | C36: 696267595.4 | D36: =D$12 -> 6323396 | E36: 48645307.35 | F36: 1085627.921 | G36: 9511935.887 | H36: 38047743.55 | I36: ='Decom Expense Proj'!G33 -> 0 | J36: 740638734.9
B37: 2021 | C37: 740638734.9 | D37: 6323396 | E37: 51731320.11 | F37: 1154499.139 | G37: 10115364.19 | H37: 40461456.78 | I37: ='Decom Expense Proj'!G34 -> 0 | J37: 787423587.7
B38: 2022 | C38: 787423587.7 | D38: 6323396 | E38: 54985206.62 | F38: 1227116.834 | G38: 10751617.96 | H38: 43006471.83 | I38: ='Decom Expense Proj'!G35 -> 0 | J38: 836753455.5
B39: 2023 | C39: 836753455.5 | D39: 6323396 | E39: 58416098.93 | F39: 1303684.804 | G39: 11422482.82 | H39: 45689931.3 | I39: ='Decom Expense Proj'!G36 -> 0 | J39: 888766782.8
B40: 2024 | C40: 888766782.8 | D40: 6323396 | E40: 62033625.84 | F40: 1384417.941 | G40: 12129841.58 | H40: 48519366.32 | I40: ='Decom Expense Proj'!G37 -> 0 | J40: 943609545.1
B41: 2025 | C41: 943609545.1 | D41: 6323396 | E41: 65847939.96 | F41: 1469542.82 | G41: 12875679.43 | H41: 51502717.71 | I41: ='Decom Expense Proj'!G38 -> 0 | J41: 1001435659
B42: 2026 | C42: 1001435659 | D42: 6323396 | E42: 69869746.17 | F42: 1559298.345 | G42: 13662089.56 | H42: 54648358.26 | I42: ='Decom Expense Proj'!G39 -> 0 | J42: 1062407413
B43: 2027 | C43: 1062407413 | D43: 6323396 | E43: 74110331.68 | F43: 1653936.415 | G43: 14491279.05 | H43: 57965116.21 | I43: ='Decom Expense Proj'!G40 -> 0 | J43: 1126695925
B44: 2028 | C44: 1126695925 | D44: 6323396 | E44: 78581597.7 | F44: 1753722.633 | G44: 15365575.01 | H44: 61462300.06 | I44: ='Decom Expense Proj'!G41 -> 0 | J44: 1194481621
B45: 2029 | C45: 1194481621 | D45: 6323396 | E45: 83296092.86 | F45: 1858937.049 | G45: 16287431.16 | H45: 65149724.65 | I45: ='Decom Expense Proj'!G42 -> 0 | J45: 1265954742
B46: 2030 | C46: 1265954742 | D46: 6323396 | E46: 88267048.4 | F46: 1969874.946 | G46: 17259434.69 | H46: 69037738.77 | I46: ='Decom Expense Proj'!G43 -> 0 | J46: 1341315877
B47: 2031 | C47: 1341315877 | D47: 6323396 | E47: 93508415.33 | F47: 2086847.674 | G47: 18284313.53 | H47: 73137254.12 | I47: ='Decom Expense Proj'!G44 -> 0 | J47: 1420776527
B48: 2032 | C48: 1420776527 | D48: 6323396 | E48: 99034903.54 | F48: 2210183.515 | G48: 19364944.01 | H48: 77459776.02 | I48: ='Decom Expense Proj'!G45 -> 0 | J48: 1504559699
B49: 2033 | C49: 1504559699 | D49: 6323396 | E49: 104862023.2 | F49: 2340228.613 | G49: 20504358.91 | H49: 82017435.64 | I49: ='Decom Expense Proj'!G46 -> 0 | J49: 1592900531
B50: 2034 | C50: 1592900531 | D50: 6323396 | E50: 111006128 | F50: 2477347.939 | G50: 21705756.01 | H50: 86823024.05 | I50: ='Decom Expense Proj'!G47 -> 0 | J50: 1686046951
B51: 2035 | C51: 1686046951 | D51: 6323396 | E51: 117484461.5 | F51: 2621926.319 | G51: 22972507.04 | H51: 91890028.15 | I51: ='Decom Expense Proj'!G48 -> 0 | J51: 1784260375
B52: 2036 | C52: 1784260375 | D52: 6323396 | E52: 124315205.2 | F52: 2774369.513 | G52: 24308167.13 | H52: 97232668.52 | I52: ='Decom Expense Proj'!G49 -> 0 | J52: 1887816439
B53: 2037 | C53: 1887816439 | D53: 6323396 | E53: 131517529.5 | F53: 2935105.353 | G53: 25716484.82 | H53: 102865939.3 | I53: ='Decom Expense Proj'!G50 -> 0 | J53: 1997005775
B54: 2038 | C54: 1997005775 | D54: 6323396 | E54: 139111647.7 | F54: 3104584.945 | G54: 27201412.55 | H54: 108805650.2 | I54: ='Decom Expense Proj'!G51 -> 0 | J54: 2112134821
B55: 2039 | C55: 2112134821 | D55: 6323396 | E55: 147118872.9 | F55: 3283283.933 | G55: 28767117.79 | H55: 115068471.2 | I55: ='Decom Expense Proj'!G52 -> 0 | J55: 2233526688
B56: 2040 | C56: 2233526688 | D56: 6323396 | E56: 155561677.2 | F56: 3471703.837 | G56: 30417994.68 | H56: 121671978.7 | I56: ='Decom Expense Proj'!G53 -> 0 | J56: 2361522063
B57: 2041 | C57: 2361522063 | D57: 6323396 | E57: 164463755.6 | F57: 3670373.458 | G57: 32158676.42 | H57: 128634705.7 | I57: ='Decom Expense Proj'!G54 -> 0 | J57: 2496480164
B58: 2042 | C58: 2496480164 | D58: 6323396 | E58: 173850091.5 | F58: 3879850.362 | G58: 33994048.23 | H58: 135976192.9 | I58: ='Decom Expense Proj'!G55 -> 0 | J58: 2638779753
B59: 2043 | C59: 2638779753 | D59: 6323396 | E59: 183747027.9 | F59: 4100722.448 | G59: 35929261.1 | H59: 143717044.4 | I59: ='Decom Expense Proj'!G56 -> 0 | J59: 2788820194
B60: 2044 | C60: 2788820194 | D60: =D59+((18/365)*D59) -> 6635234.707 | E60: 107762341.4 | F60: 4225527.194 | G60: 20707362.84 | H60: 82829451.36 | I60: ='Decom Expense Proj'!G57 -> 58001704.72 | J60: 2820283175
B61: 2045 | C61: 2820283175 | D61: 0 | E61: 103449138.1 | F61: 4056399.856 | G61: 19878547.64 | H61: 79514190.57 | I61: ='Decom Expense Proj'!G58 -> 335482346.6 | J61: 2564315019
B62: 2046 | C62: 2564315019 | D62: 0 | E62: 88963865.3 | F62: 3488410.026 | G62: 17095091.06 | H62: 68380364.22 | I62: ='Decom Expense Proj'!G59 -> 566380535.2 | J62: 2066314848
B63: 2047 | C63: 2066314848 | D63: 0 | E63: 68668777.27 | F63: 2692608.401 | G63: 13195233.77 | H63: 52780935.1 | I63: ='Decom Expense Proj'!G60 -> 611153938.4 | J63: 1507941845
B64: 2048 | C64: 1507941845 | D64: 0 | E64: 50371355.74 | F64: 1975138.353 | G64: 9679243.477 | H64: 38716973.91 | I64: ='Decom Expense Proj'!G61 -> 432737241.4 | J64: 1113921577
B65: 2049 | C65: 1113921577 | D65: 0 | E65: 35111253.53 | F65: 1376766.268 | G65: 6746897.452 | H65: 26987589.81 | I65: ='Decom Expense Proj'!G62 -> 427266050.4 | J65: 713643116.6
B66: 2050 | C66: 713643116.6 | D66: 0 | E66: 21933591.81 | F66: 860049.8789 | G66: 4214708.386 | H66: 16858833.54 | I66: ='Decom Expense Proj'!G63 -> 302486653.3 | J66: 428015296.9
B67: 2051 | C67: 428015296.9 | D67: 0 | E67: 13309779.98 | F67: 521896.9497 | G67: 2557576.606 | H67: 10230306.43 | I67: ='Decom Expense Proj'!G64 -> 173477774.2 | J67: 264767829.1
B68: 2052 | C68: 264767829.1 | D68: 0 | E68: 6024674.526 | F68: 236236.7569 | G68: 1157687.554 | H68: 4630750.215 | I68: ='Decom Expense Proj'!G65 -> 220577990.2 | J68: 48820589.1
B69: 2053 | C69: 48820589.1 | D69: 0 | E69: 937943.3118 | F69: 36778.20024 | G69: 180233.0223 | H69: 720932.0892 | I69: ='Decom Expense Proj'!G66 -> 49541521.19 | J69: 0.0001097247005
B70: 2054 | C70: 0.0001097247005 | D70: 0 | E70: 4.279263318e-06 | F70: 1.677964982e-07 | G70: 8.222933639e-07 | H70: 3.289173456e-06 | I70: ='Decom Expense Proj'!G67 -> 0 | J70: 0.0001130138739
B71: 2055 | C71: 0.0001130138739 | D71: 0 | E71: 4.407541082e-06 | F71: 1.728264667e-07 | G71: 8.469429231e-07 | H71: 3.387771693e-06 | I71: ='Decom Expense Proj'!G68 -> 0 | J71: 0.0001164016456

Sheet Fund Proj - ISFSI
B2: Ameren Missouri
B3: Callaway Energy Center Tax-Qualified Nuclear Decommissioning Trust Fund Projection
B4: Missouri Jurisdiction
B5: ISFSI Decommissioning Fund Projection
B8: 2017-06-30 | C8: Fund Balance: | D8: 590889.38 | E8: Equity Allocation: | G8: 0.65 | H8: Federal Income Tax Rate: | K8: 0.2
B9: 2051-12-31 | C9: EOY Fund Balance: | D9: =J67 -> -1.676380634e-08 | E9: Bond Allocation: | G9: 0.35 | H9: Missouri State Income Tax Rate: | K9: 0
E10: Switch Out of Equities at End-Of-Year: | G10: 2043 | H10: Percentage of Federal Taxes Deductible on MO Taxes: | K10: 0.5
B11: Current contribution: | D11: 443985.003 | H11: Composite Federal & State Income Tax Rate: | K11: =(K8+K9-(K8*K9*(1+K10)))/(1-(K8*K9*K10)) -> 0.2
B12: Revised contribution: | D12: 435209.3856 | E12: Nominal Pre-Tax & Expense Returns
E13: Bonds: | G13: 0.039 | H13: Management & Trust Fees: (BP) | K13: 15
B14: CPI Inflation: | D14: 0.022 | E14: Equities: | G14: 0.086
B15: Decommissioning Inflation: | D15: ='Macro Data'!C5 -> 0.04051859947 | E15: Weighted Average - Bonds & Equities: | G15: =(G8*G14)+(G9*G13) -> 0.06955
B17: Effective Date of Revised Annual Contribution | E17: Real Pre-Tax & Expense Returns
C18: Year: | D18: 2018 | E18: Bonds: | G18: =G13-D14 -> 0.017
C19: Quarter: | D19: 1 | E19: Equities: | G19: =G14-D14 -> 0.064
E20: Bonds & Equities | G20: =G15-D14 -> 0.04755
B23: Fund Projections
D24: Annual
D25: Cash Inflow From | F25: Investment
D26: Contributions | E26: Pre | F26: Management | G26: Federal & State | H26: After | I26: Decommissioning
B27: Year Ending | C27: Beginning-of-Year | D27: To | E27: Tax & Fee | F27: & Trust | G27: Income | H27: Tax & Fee | I27: Expenses | J27: End-Of-Year
B28: December 31, 20xx | C28: Balance | D28: Fund | E28: Income | F28: Fees | G28: Taxes | H28: Income | I28: (Inflated $$) | J28: Balance
B30: TOTAL | D30: =SUM(D33:D72) -> 11996302.2 | E30: 27793415.21 | F30: 754297.4659 | G30: 5407823.549 | H30: 21631294.2 | I30: 34218485.78
B32: =B8 -> 2017-06-30 | J32: =D8 -> 590889.38
B33: 2017 | C33: =J32 -> 590889.38 | D33: =(2/4)*D11 -> 221992.5015 | E33: =((C33+(D33/2)-(I33/2))*(6/12))*(IF(B33<=G$10,G$15,G$13)) -> 24408.07281 | F33: =(K$13/10000)*((C33+(D33/2)+(E33/2)-(I33/2))*(6/12)) -> 535.5672504 | G33: =K$11*(E33-F33) -> 4774.501112 | H33: =E33-F33-G33 -> 19098.00445 | I33: ='Decom Expense Proj'!L30 -> 0 | J33: =C33+D33+H33-I33 -> 831979.886
B34: =B33+1 -> 2018 | C34: =J33 -> 831979.886 | D34: =((1/4)*D11)+((3/4)*D12) -> 437403.29 | E34: =((C34+(D34/2)-(I34/2))*(12/12))*(IF(B34<=G$10,G$15,G$13)) -> 73074.90048 | F34: =(K$13/10000)*((C34+(D34/2)+(E34/2)-(I34/2))*(12/12)) -> 1630.828472 | G34: =K$11*(E34-F34) -> 14288.8144 | H34: 57155.2576 | I34: ='Decom Expense Proj'!L31 -> 0 | J34: 1326538.434
B35: 2019 | C35: 1326538.434 | D35: =D$12 -> 435209.3856 | E35: 107395.1544 | F35: =(K$13/10000)*((C35+(D35/2)+(E35/2)-(I35/2))*(12/12)) -> 2396.761055 | G35: 20999.67868 | H35: 83998.7147 | I35: ='Decom Expense Proj'!L32 -> 0 | J35: 1845746.534
B36: 2020 | C36: 1845746.534 | D36: =D$12 -> 435209.3856 | E36: 143506.0778 | F36: 3202.656398 | G36: 28060.68428 | H36: 112242.7371 | I36: ='Decom Expense Proj'!L33 -> 0 | J36: 2393198.657
B37: 2021 | C37: 2393198.657 | D37: 435209.3856 | E37: 181581.3729 | F37: 4052.391054 | G37: 35505.79638 | H37: 142023.1855 | I37: ='Decom Expense Proj'!L34 -> 0 | J37: 2970431.228
B38: 2022 | C38: 2970431.228 | D38: 435209.3856 | E38: 221727.8983 | F38: 4948.349804 | G38: 43355.90969 | H38: 173423.6388 | I38: ='Decom Expense Proj'!L35 -> 0 | J38: 3579064.252
B39: 2023 | C39: 3579064.252 | D39: 435209.3856 | E39: 264058.3251 | F39: 5893.047161 | G39: 51633.05559 | H39: 206532.2224 | I39: ='Decom Expense Proj'!L36 -> 0 | J39: 4220805.86
B40: 2024 | C40: 4220805.86 | D40: 435209.3856 | E40: 308691.454 | F40: 6889.13442 | G40: 60360.46391 | H40: 241441.8556 | I40: ='Decom Expense Proj'!L37 -> 0 | J40: 4897457.101
B41: 2025 | C41: 4897457.101 | D41: 435209.3856 | E41: 355752.5478 | F41: 7939.407102 | G41: 69562.62814 | H41: 278250.5125 | I41: ='Decom Expense Proj'!L38 -> 0 | J41: 5610916.999
B42: 2026 | C42: 5610916.999 | D42: 435209.3856 | E42: 405373.6837 | F42: 9046.812801 | G42: 79265.37418 | H42: 317061.4967 | I42: ='Decom Expense Proj'!L39 -> 0 | J42: 6363187.882
B43: 2027 | C43: 6363187.882 | D43: 435209.3856 | E43: 457694.1236 | F43: 10214.45945 | G43: 89495.93282 | H43: 357983.7313 | I43: ='Decom Expense Proj'!L40 -> 0 | J43: 7156380.999
B44: 2028 | C44: 7156380.999 | D44: 435209.3856 | E44: 512860.7048 | F44: 11445.62407 | G44: 100283.0162 | H44: 401132.0646 | I44: ='Decom Expense Proj'!L41 -> 0 | J44: 7992722.449
B45: 2029 | C45: 7992722.449 | D45: 435209.3856 | E45: 571028.2527 | F45: 12743.7619 | G45: 111656.8982 | H45: 446627.5926 | I45: ='Decom Expense Proj'!L42 -> 0 | J45: 8874559.427
B46: 2030 | C46: 8874559.427 | D46: 435209.3856 | E46: 632360.0145 | F46: 14112.51619 | G46: 123649.4997 | H46: 494597.9987 | I46: ='Decom Expense Proj'!L43 -> 0 | J46: 9804366.811
B47: 2031 | C47: 9804366.811 | D47: 435209.3856 | E47: 697028.1181 | F47: 15555.72834 | G47: 136294.478 | H47: 545177.9118 | I47: ='Decom Expense Proj'!L44 -> 0 | J47: 10784754.11
B48: 2032 | C48: 10784754.11 | D48: 435209.3856 | E48: 765214.0547 | F48: 17077.44874 | G48: 149627.3212 | H48: 598509.2847 | I48: ='Decom Expense Proj'!L45 -> 0 | J48: 11818472.78
B49: 2033 | C49: 11818472.78 | D49: 435209.3856 | E49: 837109.1882 | F49: 18681.9481 | G49: 163685.448 | H49: 654741.7921 | I49: ='Decom Expense Proj'!L46 -> 0 | J49: 12908423.96
B50: 2034 | C50: 12908423.96 | D50: 435209.3856 | E50: 912915.2926 | F50: 20373.72944 | G50: 178508.3126 | H50: 714033.2505 | I50: ='Decom Expense Proj'!L47 -> 0 | J50: 14057666.59
B51: 2035 | C51: 14057666.59 | D51: 435209.3856 | E51: 992845.1179 | F51: 22157.54077 | G51: 194137.5154 | H51: 776550.0617 | I51: ='Decom Expense Proj'!L48 -> 0 | J51: 15269426.04
B52: 2036 | C52: 15269426.04 | D52: 435209.3856 | E52: 1077122.987 | F52: 24038.38834 | G52: 210616.9198 | H52: 842467.6793 | I52: ='Decom Expense Proj'!L49 -> 0 | J52: 16547103.11
B53: 2037 | C53: 16547103.11 | D53: 435209.3856 | E53: 1165985.427 | F53: 26021.55077 | G53: 227992.7753 | H53: 911971.1013 | I53: ='Decom Expense Proj'!L50 -> 0 | J53: 17894283.59
B54: 2038 | C54: 17894283.59 | D54: 435209.3856 | E54: 1259681.83 | F54: 28112.5938 | G54: 246313.8473 | H54: 985255.3891 | I54: ='Decom Expense Proj'!L51 -> 0 | J54: 19314748.37
B55: 2039 | C55: 19314748.37 | D55: 435209.3856 | E55: 1358475.155 | F55: 30317.38596 | G55: 265631.5539 | H55: 1062526.215 | I55: ='Decom Expense Proj'!L52 -> 0 | J55: 20812483.97
B56: 2040 | C56: 20812483.97 | D56: 435209.3856 | E56: 1462642.666 | F56: 32642.11499 | G56: 286000.1103 | H56: 1144000.441 | I56: ='Decom Expense Proj'!L53 -> 0 | J56: 22391693.79
B57: 2041 | C57: 22391693.79 | D57: 435209.3856 | E57: 1572476.71 | F57: 35093.30526 | G57: 307476.6809 | H57: 1229906.724 | I57: ='Decom Expense Proj'!L54 -> 0 | J57: 24056809.9
B58: 2042 | C58: 24056809.9 | D58: 435209.3856 | E58: 1688285.535 | F58: 37677.83605 | G58: 330121.5398 | H58: 1320486.159 | I58: ='Decom Expense Proj'!L55 -> 0 | J58: 25812505.45
B59: 2043 | C59: 25812505.45 | D59: 435209.3856 | E59: 1810394.16 | F59: 40402.96083 | G59: 353998.2399 | H59: 1415992.96 | I59: ='Decom Expense Proj'!L56 -> 0 | J59: 27663707.79
B60: 2044 | C60: 27663707.79 | D60: =D59+((18/365)*D59) -> 456671.7663 | E60: 1087789.703 | F60: 42653.90779 | G60: 209027.1591 | H60: 836108.6365 | I60: ='Decom Expense Proj'!L57 -> 0 | J60: 28956488.2
B61: 2045 | C61: 28956488.2 | D61: 0 | E61: 1129303.04 | F61: 44281.70957 | G61: 217004.266 | H61: 868017.0641 | I61: ='Decom Expense Proj'!L58 -> 0 | J61: 29824505.26
B62: 2046 | C62: 29824505.26 | D62: 0 | E62: 1163155.705 | F62: 45609.12467 | G62: 223509.3161 | H62: 894037.2644 | I62: ='Decom Expense Proj'!L59 -> 0 | J62: 30718542.53
B63: 2047 | C63: 30718542.53 | D63: 0 | E63: 1198023.158 | F63: 46976.33116 | G63: 230209.3655 | H63: 920837.4619 | I63: ='Decom Expense Proj'!L60 -> 0 | J63: 31639379.99
B64: 2048 | C64: 31639379.99 | D64: 0 | E64: 1233935.819 | F64: 48384.52185 | G64: 237110.2595 | H64: 948441.0381 | I64: ='Decom Expense Proj'!L61 -> 0 | J64: 32587821.03
B65: 2049 | C65: 32587821.03 | D65: 0 | E65: 1270925.02 | F65: 49834.9253 | G65: 244218.0189 | H65: 976872.0757 | I65: ='Decom Expense Proj'!L62 -> 0 | J65: 33564693.1
B66: 2050 | C66: 33564693.1 | D66: 0 | E66: 747720.1524 | F66: 29319.25751 | G66: 143680.179 | H66: 574720.7159 | I66: ='Decom Expense Proj'!L63 -> 28784763 | J66: 5354650.815
B67: 2051 | C67: 5354650.815 | D67: 0 | E67: 102873.7877 | F67: 4033.839483 | G67: 19767.98964 | H67: 79071.95858 | I67: ='Decom Expense Proj'!L64 -> 5433722.774 | J67: -1.676380634e-08
B68: 2052 | C68: -1.676380634e-08 | D68: 0 | E68: -6.537884474e-10 | F68: -2.563605085e-11 | G68: -1.256304793e-10 | H68: -5.025219172e-10 | I68: ='Decom Expense Proj'!L65 -> 0 | J68: -1.726632826e-08
B69: 2053 | C69: -1.726632826e-08 | D69: 0 | E69: -6.733868022e-10 | F69: -2.640453249e-11 | G69: -1.293964539e-10 | H69: -5.175858157e-10 | I69: ='Decom Expense Proj'!L66 -> 0 | J69: -1.778391408e-08
B70: 2054 | C70: -1.778391408e-08 | D70: 0 | E70: -6.93572649e-10 | F70: -2.71960506e-11 | G70: -1.332753197e-10 | H70: -5.331012787e-10 | I70: ='Decom Expense Proj'!L67 -> 0 | J70: -1.831701535e-08
B71: 2055 | C71: =J70 -> -1.831701535e-08 | D71: 0 | E71: -7.143635988e-10 | F71: =(K$13/10000)*((C71+(D71/2)+(E71/2)-(I71/2))*(12/12)) -> -2.801129573e-11 | G71: =K$11*(E71-F71) -> -1.372704606e-10 | H71: =E71-F71-G71 -> -5.490818425e-10 | I71: ='Decom Expense Proj'!L68 -> 0 | J71: -1.88660972e-08

Sheet Fund Proj - Consolidated
B2: Ameren Missouri
B3: Callaway Energy Center Tax-Qualified Nuclear Decommissioning Trust Fund Projection
B4: Missouri Jurisdiction
B5: Consolidated Plant & ISFSI Decommissioning Fund Projection
E8: Equity Allocation: | G8: 0.65 | H8: Federal Income Tax Rate: | K8: 0.2
E9: Bond Allocation: | G9: 0.35 | H9: Missouri State Income Tax Rate: | K9: 0
E10: Switch Out of Equities at End-Of-Year: | G10: 2043 | H10: Percentage of Federal Taxes Deductible on MO Taxes: | K10: 0.5
B11: Current Total Contribution: | D11: 6758605 | H11: Composite Federal & State Income Tax Rate: | K11: =(K8+K9-(K8*K9*(1+K10)))/(1-(K8*K9*K10)) -> 0.2
B12: Revised Total Contribution: | D12: 6758605 | E12: Nominal Pre-Tax & Expense Returns
E13: Bonds: | G13: 0.039 | H13: Management & Trust Fees: (BP) | K13: 15
B14: CPI Inflation: | D14: 0.022 | E14: Equities: | G14: 0.086
B15: Decommissioning Inflation: | D15: ='Macro Data'!C5 -> 0.04051859947 | E15: Weighted Average - Bonds & Equities: | G15: =(G8*G14)+(G9*G13) -> 0.06955
B17: Effective Date of Revised Annual Contribution | E17: Real Pre-Tax & Expense Returns
C18: Year: | D18: 2018 | E18: Bonds: | G18: =G13-D14 -> 0.017
C19: Quarter: | D19: 1 | E19: Equities: | G19: =G14-D14 -> 0.064
E20: Bonds & Equities | G20: =G15-D14 -> 0.04755
B23: Fund Projections
D24: Annual
D25: Cash Inflow From | F25: Investment
D26: Contributions | E26: Pre | F26: Management | G26: Federal & State | H26: After | I26: Decommissioning
B27: Year Ending | C27: Beginning-of-Year | D27: To | E27: Tax & Fee | F27: & Trust | G27: Income | H27: Tax & Fee | I27: Expenses | J27: End-Of-Year
B28: December 31, 20xx | C28: Balance | D28: Fund | E28: Income | F28: Fees | G28: Taxes | H28: Income | I28: (Inflated $$) | J28: Balance
B30: TOTAL | D30: =SUM(D33:D72) -> 186194948.9 | E30: 3115095672 | F30: 78035099.11 | G30: 607412114.7 | H30: 2429648459 | I30: 3211324241
B32: 2017-06-30 | J32: ='Fund Proj - Plant'!J32+'Fund Proj - ISFSI'!J32 -> 595480833.8
B33: 2017 | C33: =J32 -> 595480833.8 | D33: ='Fund Proj - Plant'!D33+'Fund Proj - ISFSI'!D33 -> 3379302.502 | E33: ='Fund Proj - Plant'!E33+'Fund Proj - ISFSI'!E33 -> 20766603.62 | F33: ='Fund Proj - Plant'!F33+'Fund Proj - ISFSI'!F33 -> 455665.3402 | G33: ='Fund Proj - Plant'!G33+'Fund Proj - ISFSI'!G33 -> 4062187.656 | H33: ='Fund Proj - Plant'!H33+'Fund Proj - ISFSI'!H33 -> 16248750.62 | I33: ='Decom Expense Proj'!N30 -> 0 | J33: =C33+D33+H33-I33 -> 615108886.9
B34: =B33+1 -> 2018 | C34: =J33 -> 615108886.9 | D34: ='Fund Proj - Plant'!D34+'Fund Proj - ISFSI'!D34 -> 6758605.29 | E34: ='Fund Proj - Plant'!E34+'Fund Proj - ISFSI'!E34 -> 43015853.59 | F34: ='Fund Proj - Plant'!F34+'Fund Proj - ISFSI'!F34 -> 959994.1746 | G34: ='Fund Proj - Plant'!G34+'Fund Proj - ISFSI'!G34 -> 8411171.882 | H34: ='Fund Proj - Plant'!H34+'Fund Proj - ISFSI'!H34 -> 33644687.53 | I34: ='Decom Expense Proj'!N31 -> 0 | J34: 655512179.8
B35: 2019 | C35: 655512179.8 | D35: ='Fund Proj - Plant'!D35+'Fund Proj - ISFSI'!D35 -> 6758605.386 | E35: ='Fund Proj - Plant'!E35+'Fund Proj - ISFSI'!E35 -> 45825902.6 | F35: ='Fund Proj - Plant'!F35+'Fund Proj - ISFSI'!F35 -> 1022706.651 | G35: ='Fund Proj - Plant'!G35+'Fund Proj - ISFSI'!G35 -> 8960639.191 | H35: ='Fund Proj - Plant'!H35+'Fund Proj - ISFSI'!H35 -> 35842556.76 | I35: ='Decom Expense Proj'!N32 -> 0 | J35: 698113341.9
B36: 2020 | C36: 698113341.9 | D36: ='Fund Proj - Plant'!D36+'Fund Proj - ISFSI'!D36 -> 6758605.386 | E36: ='Fund Proj - Plant'!E36+'Fund Proj - ISFSI'!E36 -> 48788813.43 | F36: ='Fund Proj - Plant'!F36+'Fund Proj - ISFSI'!F36 -> 1088830.577 | G36: ='Fund Proj - Plant'!G36+'Fund Proj - ISFSI'!G36 -> 9539996.571 | H36: ='Fund Proj - Plant'!H36+'Fund Proj - ISFSI'!H36 -> 38159986.28 | I36: ='Decom Expense Proj'!N33 -> 0 | J36: 743031933.6
B37: 2021 | C37: 743031933.6 | D37: ='Fund Proj - Plant'!D37+'Fund Proj - ISFSI'!D37 -> 6758605.386 | E37: ='Fund Proj - Plant'!E37+'Fund Proj - ISFSI'!E37 -> 51912901.48 | F37: ='Fund Proj - Plant'!F37+'Fund Proj - ISFSI'!F37 -> 1158551.531 | G37: ='Fund Proj - Plant'!G37+'Fund Proj - ISFSI'!G37 -> 10150869.99 | H37: ='Fund Proj - Plant'!H37+'Fund Proj - ISFSI'!H37 -> 40603479.96 | I37: ='Decom Expense Proj'!N34 -> 0 | J37: 790394018.9
B38: 2022 | C38: 790394018.9 | D38: ='Fund Proj - Plant'!D38+'Fund Proj - ISFSI'!D38 -> 6758605.386 | E38: ='Fund Proj - Plant'!E38+'Fund Proj - ISFSI'!E38 -> 55206934.52 | F38: ='Fund Proj - Plant'!F38+'Fund Proj - ISFSI'!F38 -> 1232065.183 | G38: ='Fund Proj - Plant'!G38+'Fund Proj - ISFSI'!G38 -> 10794973.87 | H38: ='Fund Proj - Plant'!H38+'Fund Proj - ISFSI'!H38 -> 43179895.47 | I38: ='Decom Expense Proj'!N35 -> 0 | J38: 840332519.8
B39: 2023 | C39: 840332519.8 | D39: ='Fund Proj - Plant'!D39+'Fund Proj - ISFSI'!D39 -> 6758605.386 | E39: ='Fund Proj - Plant'!E39+'Fund Proj - ISFSI'!E39 -> 58680157.25 | F39: ='Fund Proj - Plant'!F39+'Fund Proj - ISFSI'!F39 -> 1309577.852 | G39: ='Fund Proj - Plant'!G39+'Fund Proj - ISFSI'!G39 -> 11474115.88 | H39: ='Fund Proj - Plant'!H39+'Fund Proj - ISFSI'!H39 -> 45896463.52 | I39: ='Decom Expense Proj'!N36 -> 0 | J39: 892987588.7
B40: 2024 | C40: 892987588.7 | D40: ='Fund Proj - Plant'!D40+'Fund Proj - ISFSI'!D40 -> 6758605.386 | E40: ='Fund Proj - Plant'!E40+'Fund Proj - ISFSI'!E40 -> 62342317.3 | F40: ='Fund Proj - Plant'!F40+'Fund Proj - ISFSI'!F40 -> 1391307.075 | G40: ='Fund Proj - Plant'!G40+'Fund Proj - ISFSI'!G40 -> 12190202.04 | H40: ='Fund Proj - Plant'!H40+'Fund Proj - ISFSI'!H40 -> 48760808.18 | I40: ='Decom Expense Proj'!N37 -> 0 | J40: 948507002.3
B41: 2025 | C41: 948507002.3 | D41: ='Fund Proj - Plant'!D41+'Fund Proj - ISFSI'!D41 -> 6758605.386 | E41: ='Fund Proj - Plant'!E41+'Fund Proj - ISFSI'!E41 -> 66203692.51 | F41: ='Fund Proj - Plant'!F41+'Fund Proj - ISFSI'!F41 -> 1477482.227 | G41: ='Fund Proj - Plant'!G41+'Fund Proj - ISFSI'!G41 -> 12945242.06 | H41: ='Fund Proj - Plant'!H41+'Fund Proj - ISFSI'!H41 -> 51780968.23 | I41: ='Decom Expense Proj'!N38 -> 0 | J41: 1007046576
B42: 2026 | C42: 1007046576 | D42: ='Fund Proj - Plant'!D42+'Fund Proj - ISFSI'!D42 -> 6758605.386 | E42: ='Fund Proj - Plant'!E42+'Fund Proj - ISFSI'!E42 -> 70275119.85 | F42: ='Fund Proj - Plant'!F42+'Fund Proj - ISFSI'!F42 -> 1568345.158 | G42: ='Fund Proj - Plant'!G42+'Fund Proj - ISFSI'!G42 -> 13741354.94 | H42: ='Fund Proj - Plant'!H42+'Fund Proj - ISFSI'!H42 -> 54965419.76 | I42: ='Decom Expense Proj'!N39 -> 0 | J42: 1068770601
B43: 2027 | C43: 1068770601 | D43: ='Fund Proj - Plant'!D43+'Fund Proj - ISFSI'!D43 -> 6758605.386 | E43: ='Fund Proj - Plant'!E43+'Fund Proj - ISFSI'!E43 -> 74568025.8 | F43: ='Fund Proj - Plant'!F43+'Fund Proj - ISFSI'!F43 -> 1664150.875 | G43: ='Fund Proj - Plant'!G43+'Fund Proj - ISFSI'!G43 -> 14580774.99 | H43: ='Fund Proj - Plant'!H43+'Fund Proj - ISFSI'!H43 -> 58323099.94 | I43: ='Decom Expense Proj'!N40 -> 0 | J43: 1133852306
B44: 2028 | C44: 1133852306 | D44: ='Fund Proj - Plant'!D44+'Fund Proj - ISFSI'!D44 -> 6758605.386 | E44: ='Fund Proj - Plant'!E44+'Fund Proj - ISFSI'!E44 -> 79094458.41 | F44: ='Fund Proj - Plant'!F44+'Fund Proj - ISFSI'!F44 -> 1765168.257 | G44: ='Fund Proj - Plant'!G44+'Fund Proj - ISFSI'!G44 -> 15465858.03 | H44: ='Fund Proj - Plant'!H44+'Fund Proj - ISFSI'!H44 -> 61863432.12 | I44: ='Decom Expense Proj'!N41 -> 0 | J44: 1202474344
B45: 2029 | C45: 1202474344 | D45: ='Fund Proj - Plant'!D45+'Fund Proj - ISFSI'!D45 -> 6758605.386 | E45: ='Fund Proj - Plant'!E45+'Fund Proj - ISFSI'!E45 -> 83867121.12 | F45: ='Fund Proj - Plant'!F45+'Fund Proj - ISFSI'!F45 -> 1871680.811 | G45: ='Fund Proj - Plant'!G45+'Fund Proj - ISFSI'!G45 -> 16399088.06 | H45: ='Fund Proj - Plant'!H45+'Fund Proj - ISFSI'!H45 -> 65596352.24 | I45: ='Decom Expense Proj'!N42 -> 0 | J45: 1274829301
B46: 2030 | C46: 1274829301 | D46: ='Fund Proj - Plant'!D46+'Fund Proj - ISFSI'!D46 -> 6758605.386 | E46: ='Fund Proj - Plant'!E46+'Fund Proj - ISFSI'!E46 -> 88899408.42 | F46: ='Fund Proj - Plant'!F46+'Fund Proj - ISFSI'!F46 -> 1983987.463 | G46: ='Fund Proj - Plant'!G46+'Fund Proj - ISFSI'!G46 -> 17383084.19 | H46: ='Fund Proj - Plant'!H46+'Fund Proj - ISFSI'!H46 -> 69532336.77 | I46: ='Decom Expense Proj'!N43 -> 0 | J46: 1351120244
B47: 2031 | C47: 1351120244 | D47: ='Fund Proj - Plant'!D47+'Fund Proj - ISFSI'!D47 -> 6758605.386 | E47: ='Fund Proj - Plant'!E47+'Fund Proj - ISFSI'!E47 -> 94205443.45 | F47: ='Fund Proj - Plant'!F47+'Fund Proj - ISFSI'!F47 -> 2102403.402 | G47: ='Fund Proj - Plant'!G47+'Fund Proj - ISFSI'!G47 -> 18420608.01 | H47: ='Fund Proj - Plant'!H47+'Fund Proj - ISFSI'!H47 -> 73682432.04 | I47: ='Decom Expense Proj'!N44 -> 0 | J47: 1431561281
B48: 2032 | C48: 1431561281 | D48: ='Fund Proj - Plant'!D48+'Fund Proj - ISFSI'!D48 -> 6758605.386 | E48: ='Fund Proj - Plant'!E48+'Fund Proj - ISFSI'!E48 -> 99800117.6 | F48: ='Fund Proj - Plant'!F48+'Fund Proj - ISFSI'!F48 -> 2227260.964 | G48: ='Fund Proj - Plant'!G48+'Fund Proj - ISFSI'!G48 -> 19514571.33 | H48: ='Fund Proj - Plant'!H48+'Fund Proj - ISFSI'!H48 -> 78058285.31 | I48: ='Decom Expense Proj'!N45 -> 0 | J48: 1516378172
B49: 2033 | C49: 1516378172 | D49: ='Fund Proj - Plant'!D49+'Fund Proj - ISFSI'!D49 -> 6758605.386 | E49: ='Fund Proj - Plant'!E49+'Fund Proj - ISFSI'!E49 -> 105699132.3 | F49: ='Fund Proj - Plant'!F49+'Fund Proj - ISFSI'!F49 -> 2358910.561 | G49: ='Fund Proj - Plant'!G49+'Fund Proj - ISFSI'!G49 -> 20668044.36 | H49: ='Fund Proj - Plant'!H49+'Fund Proj - ISFSI'!H49 -> 82672177.43 | I49: ='Decom Expense Proj'!N46 -> 0 | J49: 1605808955
B50: 2034 | C50: 1605808955 | D50: ='Fund Proj - Plant'!D50+'Fund Proj - ISFSI'!D50 -> 6758605.386 | E50: ='Fund Proj - Plant'!E50+'Fund Proj - ISFSI'!E50 -> 111919043.3 | F50: ='Fund Proj - Plant'!F50+'Fund Proj - ISFSI'!F50 -> 2497721.668 | G50: ='Fund Proj - Plant'!G50+'Fund Proj - ISFSI'!G50 -> 21884264.32 | H50: ='Fund Proj - Plant'!H50+'Fund Proj - ISFSI'!H50 -> 87537057.3 | I50: ='Decom Expense Proj'!N47 -> 0 | J50: 1700104617
B51: 2035 | C51: 1700104617 | D51: ='Fund Proj - Plant'!D51+'Fund Proj - ISFSI'!D51 -> 6758605.386 | E51: ='Fund Proj - Plant'!E51+'Fund Proj - ISFSI'!E51 -> 118477306.6 | F51: ='Fund Proj - Plant'!F51+'Fund Proj - ISFSI'!F51 -> 2644083.86 | G51: ='Fund Proj - Plant'!G51+'Fund Proj - ISFSI'!G51 -> 23166644.55 | H51: ='Fund Proj - Plant'!H51+'Fund Proj - ISFSI'!H51 -> 92666578.22 | I51: ='Decom Expense Proj'!N48 -> 0 | J51: 1799529801
B52: 2036 | C52: 1799529801 | D52: ='Fund Proj - Plant'!D52+'Fund Proj - ISFSI'!D52 -> 6758605.386 | E52: ='Fund Proj - Plant'!E52+'Fund Proj - ISFSI'!E52 -> 125392328.2 | F52: ='Fund Proj - Plant'!F52+'Fund Proj - ISFSI'!F52 -> 2798407.901 | G52: ='Fund Proj - Plant'!G52+'Fund Proj - ISFSI'!G52 -> 24518784.05 | H52: ='Fund Proj - Plant'!H52+'Fund Proj - ISFSI'!H52 -> 98075136.2 | I52: ='Decom Expense Proj'!N49 -> 0 | J52: 1904363542
B53: 2037 | C53: 1904363542 | D53: ='Fund Proj - Plant'!D53+'Fund Proj - ISFSI'!D53 -> 6758605.386 | E53: ='Fund Proj - Plant'!E53+'Fund Proj - ISFSI'!E53 -> 132683514.9 | F53: ='Fund Proj - Plant'!F53+'Fund Proj - ISFSI'!F53 -> 2961126.904 | G53: ='Fund Proj - Plant'!G53+'Fund Proj - ISFSI'!G53 -> 25944477.59 | H53: ='Fund Proj - Plant'!H53+'Fund Proj - ISFSI'!H53 -> 103777910.4 | I53: ='Decom Expense Proj'!N50 -> 0 | J53: 2014900058
B54: 2038 | C54: 2014900058 | D54: ='Fund Proj - Plant'!D54+'Fund Proj - ISFSI'!D54 -> 6758605.386 | E54: ='Fund Proj - Plant'!E54+'Fund Proj - ISFSI'!E54 -> 140371329.5 | F54: ='Fund Proj - Plant'!F54+'Fund Proj - ISFSI'!F54 -> 3132697.538 | G54: ='Fund Proj - Plant'!G54+'Fund Proj - ISFSI'!G54 -> 27447726.4 | H54: ='Fund Proj - Plant'!H54+'Fund Proj - ISFSI'!H54 -> 109790905.6 | I54: ='Decom Expense Proj'!N51 -> 0 | J54: 2131449569
B55: 2039 | C55: 2131449569 | D55: ='Fund Proj - Plant'!D55+'Fund Proj - ISFSI'!D55 -> 6758605.386 | E55: ='Fund Proj - Plant'!E55+'Fund Proj - ISFSI'!E55 -> 148477348 | F55: ='Fund Proj - Plant'!F55+'Fund Proj - ISFSI'!F55 -> 3313601.319 | G55: ='Fund Proj - Plant'!G55+'Fund Proj - ISFSI'!G55 -> 29032749.34 | H55: ='Fund Proj - Plant'!H55+'Fund Proj - ISFSI'!H55 -> 116130997.4 | I55: ='Decom Expense Proj'!N52 -> 0 | J55: 2254339172
B56: 2040 | C56: 2254339172 | D56: ='Fund Proj - Plant'!D56+'Fund Proj - ISFSI'!D56 -> 6758605.386 | E56: ='Fund Proj - Plant'!E56+'Fund Proj - ISFSI'!E56 -> 157024319.9 | F56: ='Fund Proj - Plant'!F56+'Fund Proj - ISFSI'!F56 -> 3504345.952 | G56: ='Fund Proj - Plant'!G56+'Fund Proj - ISFSI'!G56 -> 30703994.79 | H56: ='Fund Proj - Plant'!H56+'Fund Proj - ISFSI'!H56 -> 122815979.2 | I56: ='Decom Expense Proj'!N53 -> 0 | J56: 2383913756
B57: 2041 | C57: 2383913756 | D57: ='Fund Proj - Plant'!D57+'Fund Proj - ISFSI'!D57 -> 6758605.386 | E57: ='Fund Proj - Plant'!E57+'Fund Proj - ISFSI'!E57 -> 166036232.3 | F57: ='Fund Proj - Plant'!F57+'Fund Proj - ISFSI'!F57 -> 3705466.763 | G57: ='Fund Proj - Plant'!G57+'Fund Proj - ISFSI'!G57 -> 32466153.1 | H57: ='Fund Proj - Plant'!H57+'Fund Proj - ISFSI'!H57 -> 129864612.4 | I57: ='Decom Expense Proj'!N54 -> 0 | J57: 2520536974
B58: 2042 | C58: 2520536974 | D58: ='Fund Proj - Plant'!D58+'Fund Proj - ISFSI'!D58 -> 6758605.386 | E58: ='Fund Proj - Plant'!E58+'Fund Proj - ISFSI'!E58 -> 175538377.1 | F58: ='Fund Proj - Plant'!F58+'Fund Proj - ISFSI'!F58 -> 3917528.198 | G58: ='Fund Proj - Plant'!G58+'Fund Proj - ISFSI'!G58 -> 34324169.77 | H58: ='Fund Proj - Plant'!H58+'Fund Proj - ISFSI'!H58 -> 137296679.1 | I58: ='Decom Expense Proj'!N55 -> 0 | J58: 2664592259
B59: 2043 | C59: 2664592259 | D59: ='Fund Proj - Plant'!D59+'Fund Proj - ISFSI'!D59 -> 6758605.386 | E59: ='Fund Proj - Plant'!E59+'Fund Proj - ISFSI'!E59 -> 185557422.1 | F59: ='Fund Proj - Plant'!F59+'Fund Proj - ISFSI'!F59 -> 4141125.409 | G59: ='Fund Proj - Plant'!G59+'Fund Proj - ISFSI'!G59 -> 36283259.34 | H59: ='Fund Proj - Plant'!H59+'Fund Proj - ISFSI'!H59 -> 145133037.4 | I59: ='Decom Expense Proj'!N56 -> 0 | J59: 2816483901
B60: 2044 | C60: 2816483901 | D60: ='Fund Proj - Plant'!D60+'Fund Proj - ISFSI'!D60 -> 7091906.473 | E60: ='Fund Proj - Plant'!E60+'Fund Proj - ISFSI'!E60 -> 108850131.1 | F60: ='Fund Proj - Plant'!F60+'Fund Proj - ISFSI'!F60 -> 4268181.102 | G60: ='Fund Proj - Plant'!G60+'Fund Proj - ISFSI'!G60 -> 20916390 | H60: ='Fund Proj - Plant'!H60+'Fund Proj - ISFSI'!H60 -> 83665559.99 | I60: ='Decom Expense Proj'!N57 -> 58001704.72 | J60: 2849239663
B61: 2045 | C61: 2849239663 | D61: ='Fund Proj - Plant'!D61+'Fund Proj - ISFSI'!D61 -> 0 | E61: ='Fund Proj - Plant'!E61+'Fund Proj - ISFSI'!E61 -> 104578441.1 | F61: ='Fund Proj - Plant'!F61+'Fund Proj - ISFSI'!F61 -> 4100681.566 | G61: ='Fund Proj - Plant'!G61+'Fund Proj - ISFSI'!G61 -> 20095551.91 | H61: ='Fund Proj - Plant'!H61+'Fund Proj - ISFSI'!H61 -> 80382207.63 | I61: ='Decom Expense Proj'!N58 -> 335482346.6 | J61: 2594139524
B62: 2046 | C62: 2594139524 | D62: ='Fund Proj - Plant'!D62+'Fund Proj - ISFSI'!D62 -> 0 | E62: ='Fund Proj - Plant'!E62+'Fund Proj - ISFSI'!E62 -> 90127021.01 | F62: ='Fund Proj - Plant'!F62+'Fund Proj - ISFSI'!F62 -> 3534019.151 | G62: ='Fund Proj - Plant'!G62+'Fund Proj - ISFSI'!G62 -> 17318600.37 | H62: ='Fund Proj - Plant'!H62+'Fund Proj - ISFSI'!H62 -> 69274401.49 | I62: ='Decom Expense Proj'!N59 -> 566380535.2 | J62: 2097033391
B63: 2047 | C63: 2097033391 | D63: ='Fund Proj - Plant'!D63+'Fund Proj - ISFSI'!D63 -> 0 | E63: ='Fund Proj - Plant'!E63+'Fund Proj - ISFSI'!E63 -> 69866800.43 | F63: ='Fund Proj - Plant'!F63+'Fund Proj - ISFSI'!F63 -> 2739584.732 | G63: ='Fund Proj - Plant'!G63+'Fund Proj - ISFSI'!G63 -> 13425443.14 | H63: ='Fund Proj - Plant'!H63+'Fund Proj - ISFSI'!H63 -> 53701772.56 | I63: ='Decom Expense Proj'!N60 -> 611153938.4 | J63: 1539581225
B64: 2048 | C64: 1539581225 | D64: ='Fund Proj - Plant'!D64+'Fund Proj - ISFSI'!D64 -> 0 | E64: ='Fund Proj - Plant'!E64+'Fund Proj - ISFSI'!E64 -> 51605291.56 | F64: ='Fund Proj - Plant'!F64+'Fund Proj - ISFSI'!F64 -> 2023522.875 | G64: ='Fund Proj - Plant'!G64+'Fund Proj - ISFSI'!G64 -> 9916353.736 | H64: ='Fund Proj - Plant'!H64+'Fund Proj - ISFSI'!H64 -> 39665414.94 | I64: ='Decom Expense Proj'!N61 -> 432737241.4 | J64: 1146509398
B65: 2049 | C65: 1146509398 | D65: ='Fund Proj - Plant'!D65+'Fund Proj - ISFSI'!D65 -> 0 | E65: ='Fund Proj - Plant'!E65+'Fund Proj - ISFSI'!E65 -> 36382178.55 | F65: ='Fund Proj - Plant'!F65+'Fund Proj - ISFSI'!F65 -> 1426601.193 | G65: ='Fund Proj - Plant'!G65+'Fund Proj - ISFSI'!G65 -> 6991115.471 | H65: ='Fund Proj - Plant'!H65+'Fund Proj - ISFSI'!H65 -> 27964461.88 | I65: ='Decom Expense Proj'!N62 -> 427266050.4 | J65: 747207809.7
B66: 2050 | C66: 747207809.7 | D66: ='Fund Proj - Plant'!D66+'Fund Proj - ISFSI'!D66 -> 0 | E66: ='Fund Proj - Plant'!E66+'Fund Proj - ISFSI'!E66 -> 22681311.96 | F66: ='Fund Proj - Plant'!F66+'Fund Proj - ISFSI'!F66 -> 889369.1364 | G66: ='Fund Proj - Plant'!G66+'Fund Proj - ISFSI'!G66 -> 4358388.565 | H66: ='Fund Proj - Plant'!H66+'Fund Proj - ISFSI'!H66 -> 17433554.26 | I66: ='Decom Expense Proj'!N63 -> 331271416.3 | J66: 433369947.7
B67: 2051 | C67: 433369947.7 | D67: ='Fund Proj - Plant'!D67+'Fund Proj - ISFSI'!D67 -> 0 | E67: ='Fund Proj - Plant'!E67+'Fund Proj - ISFSI'!E67 -> 13412653.77 | F67: ='Fund Proj - Plant'!F67+'Fund Proj - ISFSI'!F67 -> 525930.7891 | G67: ='Fund Proj - Plant'!G67+'Fund Proj - ISFSI'!G67 -> 2577344.596 | H67: ='Fund Proj - Plant'!H67+'Fund Proj - ISFSI'!H67 -> 10309378.38 | I67: ='Decom Expense Proj'!N64 -> 178911497 | J67: 264767829.1
B68: 2052 | C68: 264767829.1 | D68: ='Fund Proj - Plant'!D68+'Fund Proj - ISFSI'!D68 -> 0 | E68: ='Fund Proj - Plant'!E68+'Fund Proj - ISFSI'!E68 -> 6024674.526 | F68: ='Fund Proj - Plant'!F68+'Fund Proj - ISFSI'!F68 -> 236236.7569 | G68: ='Fund Proj - Plant'!G68+'Fund Proj - ISFSI'!G68 -> 1157687.554 | H68: ='Fund Proj - Plant'!H68+'Fund Proj - ISFSI'!H68 -> 4630750.215 | I68: ='Decom Expense Proj'!N65 -> 220577990.2 | J68: 48820589.1
B69: 2053 | C69: 48820589.1 | D69: ='Fund Proj - Plant'!D69+'Fund Proj - ISFSI'!D69 -> 0 | E69: ='Fund Proj - Plant'!E69+'Fund Proj - ISFSI'!E69 -> 937943.3118 | F69: ='Fund Proj - Plant'!F69+'Fund Proj - ISFSI'!F69 -> 36778.20024 | G69: ='Fund Proj - Plant'!G69+'Fund Proj - ISFSI'!G69 -> 180233.0223 | H69: ='Fund Proj - Plant'!H69+'Fund Proj - ISFSI'!H69 -> 720932.0892 | I69: ='Decom Expense Proj'!N66 -> 49541521.19 | J69: 0.0001088902354
B70: 2054 | C70: 0.0001088902354 | D70: ='Fund Proj - Plant'!D70+'Fund Proj - ISFSI'!D70 -> 0 | E70: ='Fund Proj - Plant'!E70+'Fund Proj - ISFSI'!E70 -> 4.278569745e-06 | F70: ='Fund Proj - Plant'!F70+'Fund Proj - ISFSI'!F70 -> 1.677693021e-07 | G70: ='Fund Proj - Plant'!G70+'Fund Proj - ISFSI'!G70 -> 8.221600886e-07 | H70: ='Fund Proj - Plant'!H70+'Fund Proj - ISFSI'!H70 -> 3.288640354e-06 | I70: ='Decom Expense Proj'!N67 -> 0 | J70: 0.0001121788758
B71: 2055 | C71: 0.0001121788758 | D71: ='Fund Proj - Plant'!D71+'Fund Proj - ISFSI'!D71 -> 0 | E71: ='Fund Proj - Plant'!E71+'Fund Proj - ISFSI'!E71 -> 4.406826719e-06 | F71: ='Fund Proj - Plant'!F71+'Fund Proj - ISFSI'!F71 -> 1.727984554e-07 | G71: ='Fund Proj - Plant'!G71+'Fund Proj - ISFSI'!G71 -> 8.468056527e-07 | H71: ='Fund Proj - Plant'!H71+'Fund Proj - ISFSI'!H71 -> 3.387222611e-06 | I71: ='Decom Expense Proj'!N68 -> 0 | J71: 0.0001155660984

Sheet Overall Return - Plant
B2: Ameren Missouri
B3: Callaway Energy Center Tax-Qualified Nuclear Decommissioning Trust Fund Projection
B4: Missouri Jurisdiction
B5: Overall Annualized Return Derivation
B8: Amount Remaining in Fund at Completion of Decommissioning: | F8: =J57 -> 3.889203072e-06
B10: Required Annual Earnings Over Life of Fund: | F10: 0.06510946475
B13: (1) | C13: (2) | D13: (3) | E13: (4) | F13: (5) | G13: (6) | H13: (7) | I13: (8) | J13: (9)
D15: Contributions | E15: Pre | F15: Management | G15: Federal & State | H15: After | I15: Decommissioning
B16: Year | C16: Beginning-of-Year | D16: To | E16: Tax & Fee | F16: And Trust | G16: Income | H16: Tax & Fee | I16: Expenses | J16: End-of-Year
B17: Ending | C17: Balance | D17: Fund | E17: Income | F17: Fees | G17: Taxes | H17: Income | I17: (Inflated $$) | J17: Balance
B20: ='Fund Proj - Plant'!B32 -> 2017-06-30 | C20: N/A | D20: N/A | E20: N/A | F20: N/A | G20: N/A | H20: N/A | I20: N/A | J20: ='Fund Proj - Plant'!J32 -> 594889944.4
B21: ='Fund Proj - Plant'!B33 -> 2017 | C21: =J20 -> 594889944.4 | D21: ='Fund Proj - Plant'!D33 -> 3157310 | E21: =((C21+(D21/2)-(I21/2))*F$10)*(6/12) -> 19417875.62 | F21: =('Fund Proj - Plant'!K$13/10000)*(C21+(D21/2)+(E21/2)-(I21/2))*(6/12) -> 454633.1529 | G21: ='Fund Proj - Plant'!K$11*(E21-F21) -> 3792648.494 | H21: =E21-F21-G21 -> 15170593.98 | I21: ='Fund Proj - Plant'!I33 -> 0 | J21: =C21+D21+H21-I21 -> 613217848.4
B22: ='Fund Proj - Plant'!B34 -> 2018 | C22: =J21 -> 613217848.4 | D22: ='Fund Proj - Plant'!D34 -> 6321202 | E22: =((C22+(D22/2)-(I22/2))*F$10) -> 40132070.93 | F22: =('Fund Proj - Plant'!K$13/10000)*(C22+(D22/2)+(E22/2)-(I22/2)) -> 954666.7273 | G22: ='Fund Proj - Plant'!K$11*(E22-F22) -> 7835480.84 | H22: 31341923.36 | I22: ='Fund Proj - Plant'!I34 -> 0 | J22: 650880973.8
B23: ='Fund Proj - Plant'!B35 -> 2019 | C23: 650880973.8 | D23: ='Fund Proj - Plant'!D35 -> 6323396 | E23: 42584368.28 | F23: =('Fund Proj - Plant'!K$13/10000)*(C23+(D23/2)+(E23/2)-(I23/2)) -> 1013002.284 | G23: ='Fund Proj - Plant'!K$11*(E23-F23) -> 8314273.2 | H23: 33257092.8 | I23: ='Fund Proj - Plant'!I35 -> 0 | J23: 690461462.6
B24: ='Fund Proj - Plant'!B36 -> 2020 | C24: 690461462.6 | D24: ='Fund Proj - Plant'!D36 -> 6323396 | E24: 45161432.72 | F24: =('Fund Proj - Plant'!K$13/10000)*(C24+(D24/2)+(E24/2)-(I24/2)) -> 1074305.815 | G24: ='Fund Proj - Plant'!K$11*(E24-F24) -> 8817425.382 | H24: 35269701.53 | I24: ='Fund Proj - Plant'!I36 -> 0 | J24: 732054560.1
B25: ='Fund Proj - Plant'!B37 -> 2021 | C25: 732054560.1 | D25: ='Fund Proj - Plant'!D37 -> 6323396 | E25: 47869537.04 | F25: =('Fund Proj - Plant'!K$13/10000)*(C25+(D25/2)+(E25/2)-(I25/2)) -> 1138726.54 | G25: ='Fund Proj - Plant'!K$11*(E25-F25) -> 9346162.1 | H25: 37384648.4 | I25: ='Fund Proj - Plant'!I37 -> 0 | J25: 775762604.5
B26: ='Fund Proj - Plant'!B38 -> 2022 | C26: 775762604.5 | D26: ='Fund Proj - Plant'!D38 -> 6323396 | E26: 50715344.42 | F26: =('Fund Proj - Plant'!K$13/10000)*(C26+(D26/2)+(E26/2)-(I26/2)) -> 1206422.962 | G26: ='Fund Proj - Plant'!K$11*(E26-F26) -> 9901784.291 | H26: 39607137.16 | I26: ='Fund Proj - Plant'!I38 -> 0 | J26: 821693137.7
B27: ='Fund Proj - Plant'!B39 -> 2023 | C27: 821693137.7 | D27: ='Fund Proj - Plant'!D39 -> 6323396 | E27: 53705856.85 | F27: =('Fund Proj - Plant'!K$13/10000)*(C27+(D27/2)+(E27/2)-(I27/2)) -> 1277561.646 | G27: ='Fund Proj - Plant'!K$11*(E27-F27) -> 10485659.04 | H27: 41942636.16 | I27: ='Fund Proj - Plant'!I39 -> 0 | J27: 869959169.8
B28: ='Fund Proj - Plant'!B40 -> 2024 | C28: 869959169.8 | D28: ='Fund Proj - Plant'!D40 -> 6323396 | E28: 56848432.37 | F28: =('Fund Proj - Plant'!K$13/10000)*(C28+(D28/2)+(E28/2)-(I28/2)) -> 1352317.626 | G28: ='Fund Proj - Plant'!K$11*(E28-F28) -> 11099222.95 | H28: 44396891.79 | I28: ='Fund Proj - Plant'!I40 -> 0 | J28: 920679457.6
B29: ='Fund Proj - Plant'!B41 -> 2025 | C29: 920679457.6 | D29: ='Fund Proj - Plant'!D41 -> 6323396 | E29: 60150803.16 | F29: =('Fund Proj - Plant'!K$13/10000)*(C29+(D29/2)+(E29/2)-(I29/2)) -> 1430874.836 | G29: ='Fund Proj - Plant'!K$11*(E29-F29) -> 11743985.66 | H29: 46975942.66 | I29: ='Fund Proj - Plant'!I41 -> 0 | J29: 973978796.3
B30: ='Fund Proj - Plant'!B42 -> 2026 | C30: 973978796.3 | D30: ='Fund Proj - Plant'!D42 -> 6323396 | E30: 63621094.57 | F30: =('Fund Proj - Plant'!K$13/10000)*(C30+(D30/2)+(E30/2)-(I30/2)) -> 1513426.562 | G30: ='Fund Proj - Plant'!K$11*(E30-F30) -> 12421533.6 | H30: 49686134.4 | I30: ='Fund Proj - Plant'!I42 -> 0 | J30: 1029988327
B31: ='Fund Proj - Plant'!B43 -> 2027 | C31: 1029988327 | D31: ='Fund Proj - Plant'!D43 -> 6323396 | E31: 67267845.11 | F31: =('Fund Proj - Plant'!K$13/10000)*(C31+(D31/2)+(E31/2)-(I31/2)) -> 1600175.921 | G31: ='Fund Proj - Plant'!K$11*(E31-F31) -> 13133533.84 | H31: 52534135.35 | I31: ='Fund Proj - Plant'!I43 -> 0 | J31: 1088845858
B32: ='Fund Proj - Plant'!B44 -> 2028 | C32: 1088845858 | D32: ='Fund Proj - Plant'!D44 -> 6323396 | E32: 71100027.48 | F32: =('Fund Proj - Plant'!K$13/10000)*(C32+(D32/2)+(E32/2)-(I32/2)) -> 1691336.355 | G32: ='Fund Proj - Plant'!K$11*(E32-F32) -> 13881738.22 | H32: 55526952.9 | I32: ='Fund Proj - Plant'!I44 -> 0 | J32: 1150696207
B33: ='Fund Proj - Plant'!B45 -> 2029 | C33: 1150696207 | D33: ='Fund Proj - Plant'!D45 -> 6323396 | E33: 75127070.59 | F33: =('Fund Proj - Plant'!K$13/10000)*(C33+(D33/2)+(E33/2)-(I33/2)) -> 1787132.16 | G33: ='Fund Proj - Plant'!K$11*(E33-F33) -> 14667987.69 | H33: 58671950.74 | I33: ='Fund Proj - Plant'!I45 -> 0 | J33: 1215691554
B34: ='Fund Proj - Plant'!B46 -> 2030 | C34: 1215691554 | D34: ='Fund Proj - Plant'!D46 -> 6323396 | E34: 79358882.83 | F34: =('Fund Proj - Plant'!K$13/10000)*(C34+(D34/2)+(E34/2)-(I34/2)) -> 1887799.04 | G34: ='Fund Proj - Plant'!K$11*(E34-F34) -> 15494216.76 | H34: 61976867.03 | I34: ='Fund Proj - Plant'!I46 -> 0 | J34: 1283991817
B35: ='Fund Proj - Plant'!B47 -> 2031 | C35: 1283991817 | D35: ='Fund Proj - Plant'!D47 -> 6323396 | E35: 83805876.39 | F35: =('Fund Proj - Plant'!K$13/10000)*(C35+(D35/2)+(E35/2)-(I35/2)) -> 1993584.679 | G35: ='Fund Proj - Plant'!K$11*(E35-F35) -> 16362458.34 | H35: 65449833.37 | I35: ='Fund Proj - Plant'!I47 -> 0 | J35: 1355765046
B36: ='Fund Proj - Plant'!B48 -> 2032 | C36: 1355765046 | D36: ='Fund Proj - Plant'!D48 -> 6323396 | E36: 88478992.94 | F36: =('Fund Proj - Plant'!K$13/10000)*(C36+(D36/2)+(E36/2)-(I36/2)) -> 2104749.361 | G36: ='Fund Proj - Plant'!K$11*(E36-F36) -> 17274848.72 | H36: 69099394.86 | I36: ='Fund Proj - Plant'!I48 -> 0 | J36: 1431187837
B37: ='Fund Proj - Plant'!B49 -> 2033 | C37: 1431187837 | D37: ='Fund Proj - Plant'!D49 -> 6323396 | E37: 93389730.48 | F37: =('Fund Proj - Plant'!K$13/10000)*(C37+(D37/2)+(E37/2)-(I37/2)) -> 2221566.6 | G37: ='Fund Proj - Plant'!K$11*(E37-F37) -> 18233632.78 | H37: 72934531.11 | I37: ='Fund Proj - Plant'!I49 -> 0 | J37: 1510445764
B38: ='Fund Proj - Plant'!B50 -> 2034 | C38: 1510445764 | D38: ='Fund Proj - Plant'!D50 -> 6323396 | E38: 98550171.7 | F38: =('Fund Proj - Plant'!K$13/10000)*(C38+(D38/2)+(E38/2)-(I38/2)) -> 2344323.822 | G38: ='Fund Proj - Plant'!K$11*(E38-F38) -> 19241169.57 | H38: 76964678.3 | I38: ='Fund Proj - Plant'!I50 -> 0 | J38: 1593733838
B39: ='Fund Proj - Plant'!B51 -> 2035 | C39: 1593733838 | D39: ='Fund Proj - Plant'!D51 -> 6323396 | E39: 103973013.6 | F39: =('Fund Proj - Plant'!K$13/10000)*(C39+(D39/2)+(E39/2)-(I39/2)) -> 2473323.065 | G39: ='Fund Proj - Plant'!K$11*(E39-F39) -> 20299938.11 | H39: 81199752.46 | I39: ='Fund Proj - Plant'!I51 -> 0 | J39: 1681256987
B40: ='Fund Proj - Plant'!B52 -> 2036 | C40: 1681256987 | D40: ='Fund Proj - Plant'!D52 -> 6323396 | E40: 109671599 | F40: =('Fund Proj - Plant'!K$13/10000)*(C40+(D40/2)+(E40/2)-(I40/2)) -> 2608881.726 | G40: ='Fund Proj - Plant'!K$11*(E40-F40) -> 21412543.45 | H40: 85650173.81 | I40: ='Fund Proj - Plant'!I52 -> 0 | J40: 1773230557
B41: ='Fund Proj - Plant'!B53 -> 2037 | C41: 1773230557 | D41: ='Fund Proj - Plant'!D53 -> 6323396 | E41: 115659948.9 | F41: =('Fund Proj - Plant'!K$13/10000)*(C41+(D41/2)+(E41/2)-(I41/2)) -> 2751333.344 | G41: ='Fund Proj - Plant'!K$11*(E41-F41) -> 22581723.11 | H41: 90326892.43 | I41: ='Fund Proj - Plant'!I53 -> 0 | J41: 1869880845
B42: ='Fund Proj - Plant'!B54 -> 2038 | C42: 1869880845 | D42: ='Fund Proj - Plant'!D54 -> 6323396 | E42: 121952797.4 | F42: =('Fund Proj - Plant'!K$13/10000)*(C42+(D42/2)+(E42/2)-(I42/2)) -> 2901028.413 | G42: ='Fund Proj - Plant'!K$11*(E42-F42) -> 23810353.8 | H42: 95241415.22 | I42: ='Fund Proj - Plant'!I54 -> 0 | J42: 1971445656
B43: ='Fund Proj - Plant'!B55 -> 2039 | C43: 1971445656 | D43: ='Fund Proj - Plant'!D55 -> 6323396 | E43: 128565627.9 | F43: =('Fund Proj - Plant'!K$13/10000)*(C43+(D43/2)+(E43/2)-(I43/2)) -> 3058335.252 | G43: ='Fund Proj - Plant'!K$11*(E43-F43) -> 25101458.54 | H43: 100405834.1 | I43: ='Fund Proj - Plant'!I55 -> 0 | J43: 2078174886
B44: ='Fund Proj - Plant'!B56 -> 2040 | C44: 2078174886 | D44: ='Fund Proj - Plant'!D56 -> 6323396 | E44: 135514711 | F44: =('Fund Proj - Plant'!K$13/10000)*(C44+(D44/2)+(E44/2)-(I44/2)) -> 3223640.91 | G44: ='Fund Proj - Plant'!K$11*(E44-F44) -> 26458214.01 | H44: 105832856.1 | I44: ='Fund Proj - Plant'!I56 -> 0 | J44: 2190331138
B45: ='Fund Proj - Plant'!B57 -> 2041 | C45: 2190331138 | D45: ='Fund Proj - Plant'!D57 -> 6323396 | E45: 142817144.5 | F45: =('Fund Proj - Plant'!K$13/10000)*(C45+(D45/2)+(E45/2)-(I45/2)) -> 3397352.113 | G45: ='Fund Proj - Plant'!K$11*(E45-F45) -> 27883958.48 | H45: 111535833.9 | I45: ='Fund Proj - Plant'!I57 -> 0 | J45: 2308190368
B46: ='Fund Proj - Plant'!B58 -> 2042 | C46: 2308190368 | D46: ='Fund Proj - Plant'!D58 -> 6323396 | E46: 150490895.9 | F46: =('Fund Proj - Plant'!K$13/10000)*(C46+(D46/2)+(E46/2)-(I46/2)) -> 3579896.271 | G46: ='Fund Proj - Plant'!K$11*(E46-F46) -> 29382199.92 | H46: 117528799.7 | I46: ='Fund Proj - Plant'!I58 -> 0 | J46: 2432042564
B47: ='Fund Proj - Plant'!B59 -> 2043 | C47: 2432042564 | D47: ='Fund Proj - Plant'!D59 -> 6323396 | E47: 158554846.1 | F47: =('Fund Proj - Plant'!K$13/10000)*(C47+(D47/2)+(E47/2)-(I47/2)) -> 3771722.528 | G47: ='Fund Proj - Plant'!K$11*(E47-F47) -> 30956624.71 | H47: 123826498.8 | I47: ='Fund Proj - Plant'!I59 -> 0 | J47: 2562192459
B48: ='Fund Proj - Plant'!B60 -> 2044 | C48: 2562192459 | D48: ='Fund Proj - Plant'!D60 -> 6635234.707 | E48: 165150757.9 | F48: =('Fund Proj - Plant'!K$13/10000)*(C48+(D48/2)+(E48/2)-(I48/2)) -> 3928626.904 | G48: ='Fund Proj - Plant'!K$11*(E48-F48) -> 32244426.2 | H48: 128977704.8 | I48: ='Fund Proj - Plant'!I60 -> 58001704.72 | J48: 2639803694
B49: ='Fund Proj - Plant'!B61 -> 2045 | C49: 2639803694 | D49: ='Fund Proj - Plant'!D61 -> 0 | E49: 160954667.5 | F49: =('Fund Proj - Plant'!K$13/10000)*(C49+(D49/2)+(E49/2)-(I49/2)) -> 3828809.781 | G49: ='Fund Proj - Plant'!K$11*(E49-F49) -> 31425171.55 | H49: 125700686.2 | I49: ='Fund Proj - Plant'!I61 -> 335482346.6 | J49: 2430022033
B50: ='Fund Proj - Plant'!B62 -> 2046 | C50: 2430022033 | D50: ='Fund Proj - Plant'!D62 -> 0 | E50: 139779067.2 | F50: =('Fund Proj - Plant'!K$13/10000)*(C50+(D50/2)+(E50/2)-(I50/2)) -> 3325081.949 | G50: ='Fund Proj - Plant'!K$11*(E50-F50) -> 27290797.04 | H50: 109163188.2 | I50: ='Fund Proj - Plant'!I62 -> 566380535.2 | J50: 1972804686
B51: ='Fund Proj - Plant'!B63 -> 2047 | C51: 1972804686 | D51: ='Fund Proj - Plant'!D63 -> 0 | E51: 108552304.3 | F51: =('Fund Proj - Plant'!K$13/10000)*(C51+(D51/2)+(E51/2)-(I51/2)) -> 2582255.804 | G51: ='Fund Proj - Plant'!K$11*(E51-F51) -> 21194009.69 | H51: 84776038.77 | I51: ='Fund Proj - Plant'!I63 -> 611153938.4 | J51: 1446426787
B52: ='Fund Proj - Plant'!B64 -> 2048 | C52: 1446426787 | D52: ='Fund Proj - Plant'!D64 -> 0 | E52: 80088428.79 | F52: =('Fund Proj - Plant'!K$13/10000)*(C52+(D52/2)+(E52/2)-(I52/2)) -> 1905153.57 | G52: ='Fund Proj - Plant'!K$11*(E52-F52) -> 15636655.04 | H52: 62546620.18 | I52: ='Fund Proj - Plant'!I64 -> 432737241.4 | J52: 1076236165
B53: ='Fund Proj - Plant'!B65 -> 2049 | C53: 1076236165 | D53: ='Fund Proj - Plant'!D65 -> 0 | E53: 56163628.75 | F53: =('Fund Proj - Plant'!K$13/10000)*(C53+(D53/2)+(E53/2)-(I53/2)) -> 1336027.432 | G53: ='Fund Proj - Plant'!K$11*(E53-F53) -> 10965520.26 | H53: 43862081.05 | I53: ='Fund Proj - Plant'!I65 -> 427266050.4 | J53: 692832196.1
B54: ='Fund Proj - Plant'!B66 -> 2050 | C54: 692832196.1 | D54: ='Fund Proj - Plant'!D66 -> 0 | E54: 35262561.4 | F54: =('Fund Proj - Plant'!K$13/10000)*(C54+(D54/2)+(E54/2)-(I54/2)) -> 838830.2252 | G54: ='Fund Proj - Plant'!K$11*(E54-F54) -> 6884746.235 | H54: 27538984.94 | I54: ='Fund Proj - Plant'!I66 -> 302486653.3 | J54: 417884527.7
B55: ='Fund Proj - Plant'!B67 -> 2051 | C55: 417884527.7 | D55: ='Fund Proj - Plant'!D67 -> 0 | E55: 21560715.41 | F55: =('Fund Proj - Plant'!K$13/10000)*(C55+(D55/2)+(E55/2)-(I55/2)) -> 512888.9974 | G55: ='Fund Proj - Plant'!K$11*(E55-F55) -> 4209565.283 | H55: 16838261.13 | I55: ='Fund Proj - Plant'!I67 -> 173477774.2 | J55: 261245014.6
B56: ='Fund Proj - Plant'!B68 -> 2052 | C56: 261245014.6 | D56: ='Fund Proj - Plant'!D68 -> 0 | E56: 9828665.631 | F56: =('Fund Proj - Plant'!K$13/10000)*(C56+(D56/2)+(E56/2)-(I56/2)) -> 233805.5285 | G56: ='Fund Proj - Plant'!K$11*(E56-F56) -> 1918972.02 | H56: 7675888.082 | I56: ='Fund Proj - Plant'!I68 -> 220577990.2 | J56: 48342912.48
B57: ='Fund Proj - Plant'!B69 -> 2053 | C57: 48342912.48 | D57: ='Fund Proj - Plant'!D69 -> 0 | E57: 1534770.192 | F57: =('Fund Proj - Plant'!K$13/10000)*(C57+(D57/2)+(E57/2)-(I57/2)) -> 36509.30547 | G57: ='Fund Proj - Plant'!K$11*(E57-F57) -> 299652.1774 | H57: 1198608.709 | I57: ='Fund Proj - Plant'!I69 -> 49541521.19 | J57: 3.889203072e-06
B58: ='Fund Proj - Plant'!B70 -> 2054 | C58: 3.889203072e-06 | D58: ='Fund Proj - Plant'!D70 -> 0 | E58: 2.532239303e-07 | F58: =('Fund Proj - Plant'!K$13/10000)*(C58+(D58/2)+(E58/2)-(I58/2)) -> 6.023722555e-09 | G58: ='Fund Proj - Plant'!K$11*(E58-F58) -> 4.944004155e-08 | H58: 1.977601662e-07 | I58: ='Fund Proj - Plant'!I70 -> 0 | J58: 4.086963238e-06
B59: ='Fund Proj - Plant'!B71 -> 2055 | C59: 4.086963238e-06 | D59: ='Fund Proj - Plant'!D71 -> 0 | E59: 2.660999889e-07 | F59: =('Fund Proj - Plant'!K$13/10000)*(C59+(D59/2)+(E59/2)-(I59/2)) -> 6.330019848e-09 | G59: ='Fund Proj - Plant'!K$11*(E59-F59) -> 5.19539938e-08 | H59: 2.078159752e-07 | I59: ='Fund Proj - Plant'!I71 -> 0 | J59: 4.294779213e-06
B61: TOTALS: | D61: =SUM(D18:D60) -> 174198646.7 | E61: 3083361565 | F61: 73340109.21 | G61: 602004291.1 | H61: 2408017164 | I61: 3177105756

Sheet Overall Return - ISFSI
B2: Ameren Missouri
B3: Callaway Energy Center Tax-Qualified Nuclear Decommissioning Trust Fund Projection
B4: Missouri Jurisdiction
B5: Overall Annualized Return Derivation
B8: Amount Remaining in Fund at Completion of Decommissioning: | F8: =J55 -> 0
B10: Required Annual Earnings Over Life of Fund: | F10: 0.06078360265
B13: (1) | C13: (2) | D13: (3) | E13: (4) | F13: (5) | G13: (6) | H13: (7) | I13: (8) | J13: (9)
D15: Contributions | E15: Pre | F15: Management | G15: Federal & State | H15: After | I15: Decommissioning
B16: Year | C16: Beginning-of-Year | D16: To | E16: Tax & Fee | F16: And Trust | G16: Income | H16: Tax & Fee | I16: Expenses | J16: End-of-Year
B17: Ending | C17: Balance | D17: Fund | E17: Income | F17: Fees | G17: Taxes | H17: Income | I17: (Inflated $$) | J17: Balance
B20: ='Fund Proj - ISFSI'!B32 -> 2017-06-30 | C20: N/A | D20: N/A | E20: N/A | F20: N/A | G20: N/A | H20: N/A | I20: N/A | J20: ='Fund Proj - ISFSI'!J32 -> 590889.38
B21: ='Fund Proj - ISFSI'!B33 -> 2017 | C21: =J20 -> 590889.38 | D21: ='Fund Proj - ISFSI'!D33 -> 221992.5015 | E21: =((C21+(D21/2)-(I21/2))*F$10)*(6/12) -> 21331.56864 | F21: =('Fund Proj - ISFSI'!K$13/10000)*(C21+(D21/2)+(E21/2)-(I21/2))*(6/12) -> 534.4135613 | G21: ='Fund Proj - ISFSI'!K$11*(E21-F21) -> 4159.431016 | H21: =E21-F21-G21 -> 16637.72406 | I21: ='Fund Proj - ISFSI'!I33 -> 0 | J21: =C21+D21+H21-I21 -> 829519.6056
B22: ='Fund Proj - ISFSI'!B34 -> 2018 | C22: =J21 -> 829519.6056 | D22: ='Fund Proj - ISFSI'!D34 -> 437403.29 | E22: =((C22+(D22/2)-(I22/2))*F$10) -> 63714.66398 | F22: =('Fund Proj - ISFSI'!K$13/10000)*(C22+(D22/2)+(E22/2)-(I22/2)) -> 1620.117874 | G22: ='Fund Proj - ISFSI'!K$11*(E22-F22) -> 12418.90922 | H22: 49675.63688 | I22: ='Fund Proj - ISFSI'!I34 -> 0 | J22: 1316598.532
B23: ='Fund Proj - ISFSI'!B35 -> 2019 | C23: 1316598.532 | D23: ='Fund Proj - ISFSI'!D35 -> 435209.3856 | E23: 93254.39922 | F23: =('Fund Proj - ISFSI'!K$13/10000)*(C23+(D23/2)+(E23/2)-(I23/2)) -> 2371.245637 | G23: ='Fund Proj - ISFSI'!K$11*(E23-F23) -> 18176.63072 | H23: 72706.52287 | I23: ='Fund Proj - ISFSI'!I35 -> 0 | J23: 1824514.441
B24: ='Fund Proj - ISFSI'!B36 -> 2020 | C24: 1824514.441 | D24: ='Fund Proj - ISFSI'!D36 -> 435209.3856 | E24: 124127.358 | F24: =('Fund Proj - ISFSI'!K$13/10000)*(C24+(D24/2)+(E24/2)-(I24/2)) -> 3156.274219 | G24: ='Fund Proj - ISFSI'!K$11*(E24-F24) -> 24194.21675 | H24: 96776.86701 | I24: ='Fund Proj - ISFSI'!I36 -> 0 | J24: 2356500.694
B25: ='Fund Proj - ISFSI'!B37 -> 2021 | C25: 2356500.694 | D25: ='Fund Proj - ISFSI'!D37 -> 435209.3856 | E25: 156463.399 | F25: =('Fund Proj - ISFSI'!K$13/10000)*(C25+(D25/2)+(E25/2)-(I25/2)) -> 3978.505629 | G25: ='Fund Proj - ISFSI'!K$11*(E25-F25) -> 30496.97867 | H25: 121987.9147 | I25: ='Fund Proj - ISFSI'!I37 -> 0 | J25: 2913697.994
B26: ='Fund Proj - ISFSI'!B38 -> 2022 | C26: 2913697.994 | D26: ='Fund Proj - ISFSI'!D38 -> 435209.3856 | E26: 190331.8583 | F26: =('Fund Proj - ISFSI'!K$13/10000)*(C26+(D26/2)+(E26/2)-(I26/2)) -> 4839.702924 | G26: ='Fund Proj - ISFSI'!K$11*(E26-F26) -> 37098.43107 | H26: 148393.7243 | I26: ='Fund Proj - ISFSI'!I38 -> 0 | J26: 3497301.104
B27: ='Fund Proj - ISFSI'!B39 -> 2023 | C27: 3497301.104 | D27: ='Fund Proj - ISFSI'!D39 -> 435209.3856 | E27: 225805.3578 | F27: =('Fund Proj - ISFSI'!K$13/10000)*(C27+(D27/2)+(E27/2)-(I27/2)) -> 5741.712713 | G27: ='Fund Proj - ISFSI'!K$11*(E27-F27) -> 44012.72902 | H27: 176050.9161 | I27: ='Fund Proj - ISFSI'!I39 -> 0 | J27: 4108561.405
B28: ='Fund Proj - ISFSI'!B40 -> 2024 | C28: 4108561.405 | D28: ='Fund Proj - ISFSI'!D40 -> 435209.3856 | E28: 262959.9611 | F28: =('Fund Proj - ISFSI'!K$13/10000)*(C28+(D28/2)+(E28/2)-(I28/2)) -> 6686.469118 | G28: ='Fund Proj - ISFSI'!K$11*(E28-F28) -> 51254.6984 | H28: 205018.7936 | I28: ='Fund Proj - ISFSI'!I40 -> 0 | J28: 4748789.585
B29: ='Fund Proj - ISFSI'!B41 -> 2025 | C29: 4748789.585 | D29: ='Fund Proj - ISFSI'!D41 -> 435209.3856 | E29: 301875.3363 | F29: =('Fund Proj - ISFSI'!K$13/10000)*(C29+(D29/2)+(E29/2)-(I29/2)) -> 7675.997918 | G29: ='Fund Proj - ISFSI'!K$11*(E29-F29) -> 58839.86769 | H29: 235359.4707 | I29: ='Fund Proj - ISFSI'!I41 -> 0 | J29: 5419358.441
B30: ='Fund Proj - ISFSI'!B42 -> 2026 | C30: 5419358.441 | D30: ='Fund Proj - ISFSI'!D42 -> 435209.3856 | E30: 342634.9273 | F30: =('Fund Proj - ISFSI'!K$13/10000)*(C30+(D30/2)+(E30/2)-(I30/2)) -> 8712.420896 | G30: ='Fund Proj - ISFSI'!K$11*(E30-F30) -> 66784.50127 | H30: 267138.0051 | I30: ='Fund Proj - ISFSI'!I42 -> 0 | J30: 6121705.832
B31: ='Fund Proj - ISFSI'!B43 -> 2027 | C31: 6121705.832 | D31: ='Fund Proj - ISFSI'!D43 -> 435209.3856 | E31: 385326.132 | F31: =('Fund Proj - ISFSI'!K$13/10000)*(C31+(D31/2)+(E31/2)-(I31/2)) -> 9797.960386 | G31: ='Fund Proj - ISFSI'!K$11*(E31-F31) -> 75105.63432 | H31: 300422.5373 | I31: ='Fund Proj - ISFSI'!I43 -> 0 | J31: 6857337.754
B32: ='Fund Proj - ISFSI'!B44 -> 2028 | C32: 6857337.754 | D32: ='Fund Proj - ISFSI'!D44 -> 435209.3856 | E32: 430040.4905 | F32: =('Fund Proj - ISFSI'!K$13/10000)*(C32+(D32/2)+(E32/2)-(I32/2)) -> 10934.94404 | G32: ='Fund Proj - ISFSI'!K$11*(E32-F32) -> 83821.10929 | H32: 335284.4371 | I32: ='Fund Proj - ISFSI'!I44 -> 0 | J32: 7627831.577
B33: ='Fund Proj - ISFSI'!B45 -> 2029 | C33: 7627831.577 | D33: ='Fund Proj - ISFSI'!D45 -> 435209.3856 | E33: 476873.8808 | F33: =('Fund Proj - ISFSI'!K$13/10000)*(C33+(D33/2)+(E33/2)-(I33/2)) -> 12125.80982 | G33: ='Fund Proj - ISFSI'!K$11*(E33-F33) -> 92949.6142 | H33: 371798.4568 | I33: ='Fund Proj - ISFSI'!I45 -> 0 | J33: 8434839.42
B34: ='Fund Proj - ISFSI'!B46 -> 2030 | C34: 8434839.42 | D34: ='Fund Proj - ISFSI'!D46 -> 435209.3856 | E34: 525926.7249 | F34: =('Fund Proj - ISFSI'!K$13/10000)*(C34+(D34/2)+(E34/2)-(I34/2)) -> 13373.11121 | G34: ='Fund Proj - ISFSI'!K$11*(E34-F34) -> 102510.7227 | H34: 410042.8909 | I34: ='Fund Proj - ISFSI'!I46 -> 0 | J34: 9280091.696
B35: ='Fund Proj - ISFSI'!B47 -> 2031 | C35: 9280091.696 | D35: ='Fund Proj - ISFSI'!D47 -> 435209.3856 | E35: 577304.2034 | F35: =('Fund Proj - ISFSI'!K$13/10000)*(C35+(D35/2)+(E35/2)-(I35/2)) -> 14679.52274 | G35: ='Fund Proj - ISFSI'!K$11*(E35-F35) -> 112524.9361 | H35: 450099.7445 | I35: ='Fund Proj - ISFSI'!I47 -> 0 | J35: 10165400.83
B36: ='Fund Proj - ISFSI'!B48 -> 2032 | C36: 10165400.83 | D36: ='Fund Proj - ISFSI'!D48 -> 435209.3856 | E36: 631116.4818 | F36: =('Fund Proj - ISFSI'!K$13/10000)*(C36+(D36/2)+(E36/2)-(I36/2)) -> 16047.84564 | G36: ='Fund Proj - ISFSI'!K$11*(E36-F36) -> 123013.7272 | H36: 492054.9089 | I36: ='Fund Proj - ISFSI'!I48 -> 0 | J36: 11092665.12
B37: ='Fund Proj - ISFSI'!B49 -> 2033 | C37: 11092665.12 | D37: ='Fund Proj - ISFSI'!D49 -> 435209.3856 | E37: 687478.9462 | F37: =('Fund Proj - ISFSI'!K$13/10000)*(C37+(D37/2)+(E37/2)-(I37/2)) -> 17481.01393 | G37: ='Fund Proj - ISFSI'!K$11*(E37-F37) -> 133999.5865 | H37: 535998.3458 | I37: ='Fund Proj - ISFSI'!I49 -> 0 | J37: 12063872.85
B38: ='Fund Proj - ISFSI'!B50 -> 2034 | C38: 12063872.85 | D38: ='Fund Proj - ISFSI'!D50 -> 435209.3856 | E38: 746512.451 | F38: =('Fund Proj - ISFSI'!K$13/10000)*(C38+(D38/2)+(E38/2)-(I38/2)) -> 18982.10066 | G38: ='Fund Proj - ISFSI'!K$11*(E38-F38) -> 145506.0701 | H38: 582024.2803 | I38: ='Fund Proj - ISFSI'!I50 -> 0 | J38: 13081106.52
B39: ='Fund Proj - ISFSI'!B51 -> 2035 | C39: 13081106.52 | D39: ='Fund Proj - ISFSI'!D51 -> 435209.3856 | E39: 808343.578 | F39: =('Fund Proj - ISFSI'!K$13/10000)*(C39+(D39/2)+(E39/2)-(I39/2)) -> 20554.3245 | G39: ='Fund Proj - ISFSI'!K$11*(E39-F39) -> 157557.8507 | H39: 630231.4028 | I39: ='Fund Proj - ISFSI'!I51 -> 0 | J39: 14146547.31
B40: ='Fund Proj - ISFSI'!B52 -> 2036 | C40: 14146547.31 | D40: ='Fund Proj - ISFSI'!D52 -> 435209.3856 | E40: 873104.9075 | F40: =('Fund Proj - ISFSI'!K$13/10000)*(C40+(D40/2)+(E40/2)-(I40/2)) -> 22201.05668 | G40: ='Fund Proj - ISFSI'!K$11*(E40-F40) -> 170180.7702 | H40: 680723.0806 | I40: ='Fund Proj - ISFSI'!I52 -> 0 | J40: 15262479.77
B41: ='Fund Proj - ISFSI'!B53 -> 2037 | C41: 15262479.77 | D41: ='Fund Proj - ISFSI'!D53 -> 435209.3856 | E41: 940935.3031 | F41: =('Fund Proj - ISFSI'!K$13/10000)*(C41+(D41/2)+(E41/2)-(I41/2)) -> 23925.82818 | G41: ='Fund Proj - ISFSI'!K$11*(E41-F41) -> 183401.895 | H41: 733607.5799 | I41: ='Fund Proj - ISFSI'!I53 -> 0 | J41: 16431296.74
B42: ='Fund Proj - ISFSI'!B54 -> 2038 | C42: 16431296.74 | D42: ='Fund Proj - ISFSI'!D54 -> 435209.3856 | E42: 1011980.209 | F42: =('Fund Proj - ISFSI'!K$13/10000)*(C42+(D42/2)+(E42/2)-(I42/2)) -> 25732.3373 | G42: ='Fund Proj - ISFSI'!K$11*(E42-F42) -> 197249.5744 | H42: 788998.2974 | I42: ='Fund Proj - ISFSI'!I54 -> 0 | J42: 17655504.42
B43: ='Fund Proj - ISFSI'!B55 -> 2039 | C43: 17655504.42 | D43: ='Fund Proj - ISFSI'!D55 -> 435209.3856 | E43: 1086391.962 | F43: =('Fund Proj - ISFSI'!K$13/10000)*(C43+(D43/2)+(E43/2)-(I43/2)) -> 27624.45764 | G43: ='Fund Proj - ISFSI'!K$11*(E43-F43) -> 211753.501 | H43: 847014.0039 | I43: ='Fund Proj - ISFSI'!I55 -> 0 | J43: 18937727.81
B44: ='Fund Proj - ISFSI'!B56 -> 2040 | C44: 18937727.81 | D44: ='Fund Proj - ISFSI'!D56 -> 435209.3856 | E44: 1164330.119 | F44: =('Fund Proj - ISFSI'!K$13/10000)*(C44+(D44/2)+(E44/2)-(I44/2)) -> 29606.24635 | G44: ='Fund Proj - ISFSI'!K$11*(E44-F44) -> 226944.7746 | H44: 907779.0985 | I44: ='Fund Proj - ISFSI'!I56 -> 0 | J44: 20280716.29
B45: ='Fund Proj - ISFSI'!B57 -> 2041 | C45: 20280716.29 | D45: ='Fund Proj - ISFSI'!D57 -> 435209.3856 | E45: 1245961.798 | F45: =('Fund Proj - ISFSI'!K$13/10000)*(C45+(D45/2)+(E45/2)-(I45/2)) -> 31681.95283 | G45: ='Fund Proj - ISFSI'!K$11*(E45-F45) -> 242855.969 | H45: 971423.876 | I45: ='Fund Proj - ISFSI'!I57 -> 0 | J45: 21687349.56
B46: ='Fund Proj - ISFSI'!B58 -> 2042 | C46: 21687349.56 | D46: ='Fund Proj - ISFSI'!D58 -> 435209.3856 | E46: 1331462.035 | F46: =('Fund Proj - ISFSI'!K$13/10000)*(C46+(D46/2)+(E46/2)-(I46/2)) -> 33856.0279 | G46: ='Fund Proj - ISFSI'!K$11*(E46-F46) -> 259521.2014 | H46: 1038084.806 | I46: ='Fund Proj - ISFSI'!I58 -> 0 | J46: 23160643.75
B47: ='Fund Proj - ISFSI'!B59 -> 2043 | C47: 23160643.75 | D47: ='Fund Proj - ISFSI'!D59 -> 435209.3856 | E47: 1421014.164 | F47: =('Fund Proj - ISFSI'!K$13/10000)*(C47+(D47/2)+(E47/2)-(I47/2)) -> 36133.13328 | G47: ='Fund Proj - ISFSI'!K$11*(E47-F47) -> 276976.2061 | H47: 1107904.824 | I47: ='Fund Proj - ISFSI'!I59 -> 0 | J47: 24703757.96
B48: ='Fund Proj - ISFSI'!B60 -> 2044 | C48: 24703757.96 | D48: ='Fund Proj - ISFSI'!D60 -> 456671.7663 | E48: 1515462.485 | F48: =('Fund Proj - ISFSI'!K$13/10000)*(C48+(D48/2)+(E48/2)-(I48/2)) -> 38534.73763 | G48: ='Fund Proj - ISFSI'!K$11*(E48-F48) -> 295385.5495 | H48: 1181542.198 | I48: ='Fund Proj - ISFSI'!I60 -> 0 | J48: 26341971.92
B49: ='Fund Proj - ISFSI'!B61 -> 2045 | C49: 26341971.92 | D49: ='Fund Proj - ISFSI'!D61 -> 0 | E49: 1601159.954 | F49: =('Fund Proj - ISFSI'!K$13/10000)*(C49+(D49/2)+(E49/2)-(I49/2)) -> 40713.82785 | G49: ='Fund Proj - ISFSI'!K$11*(E49-F49) -> 312089.2253 | H49: 1248356.901 | I49: ='Fund Proj - ISFSI'!I61 -> 0 | J49: 27590328.82
B50: ='Fund Proj - ISFSI'!B62 -> 2046 | C50: 27590328.82 | D50: ='Fund Proj - ISFSI'!D62 -> 0 | E50: 1677039.584 | F50: =('Fund Proj - ISFSI'!K$13/10000)*(C50+(D50/2)+(E50/2)-(I50/2)) -> 42643.27292 | G50: ='Fund Proj - ISFSI'!K$11*(E50-F50) -> 326879.2622 | H50: 1307517.049 | I50: ='Fund Proj - ISFSI'!I62 -> 0 | J50: 28897845.87
B51: ='Fund Proj - ISFSI'!B63 -> 2047 | C51: 28897845.87 | D51: ='Fund Proj - ISFSI'!D63 -> 0 | E51: 1756515.181 | F51: =('Fund Proj - ISFSI'!K$13/10000)*(C51+(D51/2)+(E51/2)-(I51/2)) -> 44664.15519 | G51: ='Fund Proj - ISFSI'!K$11*(E51-F51) -> 342370.2051 | H51: 1369480.821 | I51: ='Fund Proj - ISFSI'!I63 -> 0 | J51: 30267326.69
B52: ='Fund Proj - ISFSI'!B64 -> 2048 | C52: 30267326.69 | D52: ='Fund Proj - ISFSI'!D64 -> 0 | E52: 1839757.159 | F52: =('Fund Proj - ISFSI'!K$13/10000)*(C52+(D52/2)+(E52/2)-(I52/2)) -> 46780.80791 | G52: ='Fund Proj - ISFSI'!K$11*(E52-F52) -> 358595.2702 | H52: 1434381.081 | I52: ='Fund Proj - ISFSI'!I64 -> 0 | J52: 31701707.77
B53: ='Fund Proj - ISFSI'!B65 -> 2049 | C53: 31701707.77 | D53: ='Fund Proj - ISFSI'!D65 -> 0 | E53: 1926944.009 | F53: =('Fund Proj - ISFSI'!K$13/10000)*(C53+(D53/2)+(E53/2)-(I53/2)) -> 48997.76967 | G53: ='Fund Proj - ISFSI'!K$11*(E53-F53) -> 375589.2478 | H53: 1502356.991 | I53: ='Fund Proj - ISFSI'!I65 -> 0 | J53: 33204064.76
B54: ='Fund Proj - ISFSI'!B66 -> 2050 | C54: 33204064.76 | D54: ='Fund Proj - ISFSI'!D66 -> 0 | E54: 1143441.881 | F54: =('Fund Proj - ISFSI'!K$13/10000)*(C54+(D54/2)+(E54/2)-(I54/2)) -> 29075.10631 | G54: ='Fund Proj - ISFSI'!K$11*(E54-F54) -> 222873.3549 | H54: 891493.4195 | I54: ='Fund Proj - ISFSI'!I66 -> 28784763 | J54: 5310795.183
B55: ='Fund Proj - ISFSI'!B67 -> 2051 | C55: 5310795.183 | D55: ='Fund Proj - ISFSI'!D67 -> 0 | E55: 157668.6411 | F55: =('Fund Proj - ISFSI'!K$13/10000)*(C55+(D55/2)+(E55/2)-(I55/2)) -> 4009.152175 | G55: ='Fund Proj - ISFSI'!K$11*(E55-F55) -> 30731.89779 | H55: 122927.5912 | I55: ='Fund Proj - ISFSI'!I67 -> 5433722.774 | J55: 0
B56: ='Fund Proj - ISFSI'!B68 -> 2052 | C56: 0 | D56: ='Fund Proj - ISFSI'!D68 -> 0 | E56: 0 | F56: =('Fund Proj - ISFSI'!K$13/10000)*(C56+(D56/2)+(E56/2)-(I56/2)) -> 0 | G56: ='Fund Proj - ISFSI'!K$11*(E56-F56) -> 0 | H56: 0 | I56: ='Fund Proj - ISFSI'!I68 -> 0 | J56: 0
B57: ='Fund Proj - ISFSI'!B69 -> 2053 | C57: 0 | D57: ='Fund Proj - ISFSI'!D69 -> 0 | E57: 0 | F57: =('Fund Proj - ISFSI'!K$13/10000)*(C57+(D57/2)+(E57/2)-(I57/2)) -> 0 | G57: ='Fund Proj - ISFSI'!K$11*(E57-F57) -> 0 | H57: 0 | I57: ='Fund Proj - ISFSI'!I69 -> 0 | J57: 0
B58: ='Fund Proj - ISFSI'!B70 -> 2054 | C58: 0 | D58: ='Fund Proj - ISFSI'!D70 -> 0 | E58: 0 | F58: =('Fund Proj - ISFSI'!K$13/10000)*(C58+(D58/2)+(E58/2)-(I58/2)) -> 0 | G58: ='Fund Proj - ISFSI'!K$11*(E58-F58) -> 0 | H58: 0 | I58: ='Fund Proj - ISFSI'!I70 -> 0 | J58: 0
B59: ='Fund Proj - ISFSI'!B71 -> 2055 | C59: 0 | D59: ='Fund Proj - ISFSI'!D71 -> 0 | E59: 0 | F59: =('Fund Proj - ISFSI'!K$13/10000)*(C59+(D59/2)+(E59/2)-(I59/2)) -> 0 | G59: ='Fund Proj - ISFSI'!K$11*(E59-F59) -> 0 | H59: 0 | I59: ='Fund Proj - ISFSI'!I71 -> 0 | J59: 0
B61: TOTALS: | D61: =SUM(D18:D60) -> 11996302.2 | E61: 27744591.11 | F61: 705473.3632 | G61: 5407823.549 | H61: 21631294.2 | I61: 34218485.78

Sheet Overall Return - Consol
B2: Ameren Missouri
B3: Callaway Energy Center Tax-Qualified Nuclear Decommissioning Trust Fund Projection
B4: Missouri Jurisdiction
B5: Overall Annualized Return Derivation
B8: Amount Remaining in Fund at Completion of Decommissioning: | F8: =J57 -> 3.971159458e-06
B10: Required Annual Earnings Over Life of Fund: | F10: 0.06507544228
B13: (1) | C13: (2) | D13: (3) | E13: (4) | F13: (5) | G13: (6) | H13: (7) | I13: (8) | J13: (9)
D15: Contributions | E15: Pre | F15: Management | G15: Federal & State | H15: After | I15: Decommissioning
B16: Year | C16: Beginning-of-Year | D16: To | E16: Tax & Fee | F16: And Trust | G16: Income | H16: Tax & Fee | I16: Expenses | J16: End-of-Year
B17: Ending | C17: Balance | D17: Fund | E17: Income | F17: Fees | G17: Taxes | H17: Income | I17: (Inflated $$) | J17: Balance
B20: ='Fund Proj - Consolidated'!B32 -> 2017-06-30 | C20: N/A | D20: N/A | E20: N/A | F20: N/A | G20: N/A | H20: N/A | I20: N/A | J20: ='Fund Proj - Consolidated'!J32 -> 595480833.8
B21: ='Fund Proj - Consolidated'!B33 -> 2017 | C21: =J20 -> 595480833.8 | D21: ='Fund Proj - Consolidated'!D33 -> 3379302.502 | E21: =((C21+(D21/2)-(I21/2))*F$10)*(6/12) -> 19430566.71 | F21: =('Fund Proj - Consolidated'!K$13/10000)*(C21+(D21/2)+(E21/2)-(I21/2))*(6/12) -> 455164.3263 | G21: ='Fund Proj - Consolidated'!K$11*(E21-F21) -> 3795080.478 | H21: =E21-F21-G21 -> 15180321.91 | I21: ='Fund Proj - Consolidated'!I33 -> 0 | J21: =C21+D21+H21-I21 -> 614040458.2
B22: ='Fund Proj - Consolidated'!B34 -> 2018 | C22: =J21 -> 614040458.2 | D22: ='Fund Proj - Consolidated'!D34 -> 6758605.29 | E22: =((C22+(D22/2)-(I22/2))*F$10) -> 40178864.01 | F22: =('Fund Proj - Consolidated'!K$13/10000)*(C22+(D22/2)+(E22/2)-(I22/2)) -> 956263.7893 | G22: ='Fund Proj - Consolidated'!K$11*(E22-F22) -> 7844520.044 | H22: 31378080.18 | I22: ='Fund Proj - Consolidated'!I34 -> 0 | J22: 652177143.7
B23: ='Fund Proj - Consolidated'!B35 -> 2019 | C23: 652177143.7 | D23: ='Fund Proj - Consolidated'!D35 -> 6758605.386 | E23: 42660625.69 | F23: =('Fund Proj - Consolidated'!K$13/10000)*(C23+(D23/2)+(E23/2)-(I23/2)) -> 1015330.139 | G23: ='Fund Proj - Consolidated'!K$11*(E23-F23) -> 8329059.109 | H23: 33316236.44 | I23: ='Fund Proj - Consolidated'!I35 -> 0 | J23: 692251985.5
B24: ='Fund Proj - Consolidated'!B36 -> 2020 | C24: 692251985.5 | D24: ='Fund Proj - Consolidated'!D36 -> 6758605.386 | E24: 45268513.74 | F24: =('Fund Proj - Consolidated'!K$13/10000)*(C24+(D24/2)+(E24/2)-(I24/2)) -> 1077398.318 | G24: ='Fund Proj - Consolidated'!K$11*(E24-F24) -> 8838223.085 | H24: 35352892.34 | I24: ='Fund Proj - Consolidated'!I36 -> 0 | J24: 734363483.2
B25: ='Fund Proj - Consolidated'!B37 -> 2021 | C25: 734363483.2 | D25: ='Fund Proj - Consolidated'!D37 -> 6758605.386 | E25: 48008938.08 | F25: =('Fund Proj - Consolidated'!K$13/10000)*(C25+(D25/2)+(E25/2)-(I25/2)) -> 1142620.882 | G25: ='Fund Proj - Consolidated'!K$11*(E25-F25) -> 9373263.44 | H25: 37493053.76 | I25: ='Fund Proj - Consolidated'!I37 -> 0 | J25: 778615142.4
B26: ='Fund Proj - Consolidated'!B38 -> 2022 | C26: 778615142.4 | D26: ='Fund Proj - Consolidated'!D38 -> 6758605.386 | E26: 50888634.37 | F26: =('Fund Proj - Consolidated'!K$13/10000)*(C26+(D26/2)+(E26/2)-(I26/2)) -> 1211158.143 | G26: ='Fund Proj - Consolidated'!K$11*(E26-F26) -> 9935495.245 | H26: 39741980.98 | I26: ='Fund Proj - Consolidated'!I38 -> 0 | J26: 825115728.8
B27: ='Fund Proj - Consolidated'!B39 -> 2023 | C27: 825115728.8 | D27: ='Fund Proj - Consolidated'!D39 -> 6758605.386 | E27: 53914680.59 | F27: =('Fund Proj - Consolidated'!K$13/10000)*(C27+(D27/2)+(E27/2)-(I27/2)) -> 1283178.558 | G27: ='Fund Proj - Consolidated'!K$11*(E27-F27) -> 10526300.41 | H27: 42105201.63 | I27: ='Fund Proj - Consolidated'!I39 -> 0 | J27: 873979535.8
B28: ='Fund Proj - Consolidated'!B40 -> 2024 | C28: 873979535.8 | D28: ='Fund Proj - Consolidated'!D40 -> 6758605.386 | E28: 57094514.45 | F28: =('Fund Proj - Consolidated'!K$13/10000)*(C28+(D28/2)+(E28/2)-(I28/2)) -> 1358859.144 | G28: ='Fund Proj - Consolidated'!K$11*(E28-F28) -> 11147131.06 | H28: 44588524.24 | I28: ='Fund Proj - Consolidated'!I40 -> 0 | J28: 925326665.4
B29: ='Fund Proj - Consolidated'!B41 -> 2025 | C29: 925326665.4 | D29: ='Fund Proj - Consolidated'!D41 -> 6758605.386 | E29: 60435951.62 | F29: =('Fund Proj - Consolidated'!K$13/10000)*(C29+(D29/2)+(E29/2)-(I29/2)) -> 1438385.916 | G29: ='Fund Proj - Consolidated'!K$11*(E29-F29) -> 11799513.14 | H29: 47198052.56 | I29: ='Fund Proj - Consolidated'!I41 -> 0 | J29: 979283323.3
B30: ='Fund Proj - Consolidated'!B42 -> 2026 | C30: 979283323.3 | D30: ='Fund Proj - Consolidated'!D42 -> 6758605.386 | E30: 63947205 | F30: =('Fund Proj - Consolidated'!K$13/10000)*(C30+(D30/2)+(E30/2)-(I30/2)) -> 1521954.343 | G30: ='Fund Proj - Consolidated'!K$11*(E30-F30) -> 12485050.13 | H30: 49940200.52 | I30: ='Fund Proj - Consolidated'!I42 -> 0 | J30: 1035982129
B31: ='Fund Proj - Consolidated'!B43 -> 2027 | C31: 1035982129 | D31: ='Fund Proj - Consolidated'!D43 -> 6758605.386 | E31: 67636904.87 | F31: =('Fund Proj - Consolidated'!K$13/10000)*(C31+(D31/2)+(E31/2)-(I31/2)) -> 1609769.827 | G31: ='Fund Proj - Consolidated'!K$11*(E31-F31) -> 13205427.01 | H31: 52821708.03 | I31: ='Fund Proj - Consolidated'!I43 -> 0 | J31: 1095562443
B32: ='Fund Proj - Consolidated'!B44 -> 2028 | C32: 1095562443 | D32: ='Fund Proj - Consolidated'!D44 -> 6758605.386 | E32: 71514120.11 | F32: =('Fund Proj - Consolidated'!K$13/10000)*(C32+(D32/2)+(E32/2)-(I32/2)) -> 1702048.208 | G32: ='Fund Proj - Consolidated'!K$11*(E32-F32) -> 13962414.38 | H32: 55849657.52 | I32: ='Fund Proj - Consolidated'!I44 -> 0 | J32: 1158170706
B33: ='Fund Proj - Consolidated'!B45 -> 2029 | C33: 1158170706 | D33: ='Fund Proj - Consolidated'!D45 -> 6758605.386 | E33: 75588380.51 | F33: =('Fund Proj - Consolidated'!K$13/10000)*(C33+(D33/2)+(E33/2)-(I33/2)) -> 1799016.298 | G33: ='Fund Proj - Consolidated'!K$11*(E33-F33) -> 14757872.84 | H33: 59031491.37 | I33: ='Fund Proj - Consolidated'!I45 -> 0 | J33: 1223960802
B34: ='Fund Proj - Consolidated'!B46 -> 2030 | C34: 1223960802 | D34: ='Fund Proj - Consolidated'!D46 -> 6758605.386 | E34: 79869700.16 | F34: =('Fund Proj - Consolidated'!K$13/10000)*(C34+(D34/2)+(E34/2)-(I34/2)) -> 1900912.433 | G34: ='Fund Proj - Consolidated'!K$11*(E34-F34) -> 15593757.54 | H34: 62375030.18 | I34: ='Fund Proj - Consolidated'!I46 -> 0 | J34: 1293094438
B35: ='Fund Proj - Consolidated'!B47 -> 2031 | C35: 1293094438 | D35: ='Fund Proj - Consolidated'!D47 -> 6758605.386 | E35: 84368602.07 | F35: =('Fund Proj - Consolidated'!K$13/10000)*(C35+(D35/2)+(E35/2)-(I35/2)) -> 2007987.062 | G35: ='Fund Proj - Consolidated'!K$11*(E35-F35) -> 16472123 | H35: 65888492 | I35: ='Fund Proj - Consolidated'!I47 -> 0 | J35: 1365741535
B36: ='Fund Proj - Consolidated'!B48 -> 2032 | C36: 1365741535 | D36: ='Fund Proj - Consolidated'!D48 -> 6758605.386 | E36: 89096144.06 | F36: =('Fund Proj - Consolidated'!K$13/10000)*(C36+(D36/2)+(E36/2)-(I36/2)) -> 2120503.365 | G36: ='Fund Proj - Consolidated'!K$11*(E36-F36) -> 17395128.14 | H36: 69580512.56 | I36: ='Fund Proj - Consolidated'!I48 -> 0 | J36: 1442080653
B37: ='Fund Proj - Consolidated'!B49 -> 2033 | C37: 1442080653 | D37: ='Fund Proj - Consolidated'!D49 -> 6758605.386 | E37: 94063945.92 | F37: =('Fund Proj - Consolidated'!K$13/10000)*(C37+(D37/2)+(E37/2)-(I37/2)) -> 2238737.893 | G37: ='Fund Proj - Consolidated'!K$11*(E37-F37) -> 18365041.61 | H37: 73460166.42 | I37: ='Fund Proj - Consolidated'!I49 -> 0 | J37: 1522299425
B38: ='Fund Proj - Consolidated'!B50 -> 2034 | C38: 1522299425 | D38: ='Fund Proj - Consolidated'!D50 -> 6758605.386 | E38: 99284217.98 | F38: =('Fund Proj - Consolidated'!K$13/10000)*(C38+(D38/2)+(E38/2)-(I38/2)) -> 2362981.255 | G38: ='Fund Proj - Consolidated'!K$11*(E38-F38) -> 19384247.34 | H38: 77536989.38 | I38: ='Fund Proj - Consolidated'!I50 -> 0 | J38: 1606595020
B39: ='Fund Proj - Consolidated'!B51 -> 2035 | C39: 1606595020 | D39: ='Fund Proj - Consolidated'!D51 -> 6758605.386 | E39: 104769791.1 | F39: =('Fund Proj - Consolidated'!K$13/10000)*(C39+(D39/2)+(E39/2)-(I39/2)) -> 2493538.827 | G39: ='Fund Proj - Consolidated'!K$11*(E39-F39) -> 20455250.45 | H39: 81821001.81 | I39: ='Fund Proj - Consolidated'!I51 -> 0 | J39: 1695174627
B40: ='Fund Proj - Consolidated'!B52 -> 2036 | C40: 1695174627 | D40: ='Fund Proj - Consolidated'!D52 -> 6758605.386 | E40: 110534148.2 | F40: =('Fund Proj - Consolidated'!K$13/10000)*(C40+(D40/2)+(E40/2)-(I40/2)) -> 2630731.506 | G40: ='Fund Proj - Consolidated'!K$11*(E40-F40) -> 21580683.34 | H40: 86322733.36 | I40: ='Fund Proj - Consolidated'!I52 -> 0 | J40: 1788255966
B41: ='Fund Proj - Consolidated'!B53 -> 2037 | C41: 1788255966 | D41: ='Fund Proj - Consolidated'!D53 -> 6758605.386 | E41: 116591457.5 | F41: =('Fund Proj - Consolidated'!K$13/10000)*(C41+(D41/2)+(E41/2)-(I41/2)) -> 2774896.496 | G41: ='Fund Proj - Consolidated'!K$11*(E41-F41) -> 22763312.2 | H41: 91053248.8 | I41: ='Fund Proj - Consolidated'!I53 -> 0 | J41: 1886067820
B42: ='Fund Proj - Consolidated'!B54 -> 2038 | C42: 1886067820 | D42: ='Fund Proj - Consolidated'!D54 -> 6758605.386 | E42: 122956607.2 | F42: =('Fund Proj - Consolidated'!K$13/10000)*(C42+(D42/2)+(E42/2)-(I42/2)) -> 2926388.139 | G42: ='Fund Proj - Consolidated'!K$11*(E42-F42) -> 24006043.8 | H42: 96024175.22 | I42: ='Fund Proj - Consolidated'!I54 -> 0 | J42: 1988850601
B43: ='Fund Proj - Consolidated'!B55 -> 2039 | C43: 1988850601 | D43: ='Fund Proj - Consolidated'!D55 -> 6758605.386 | E43: 129645242.1 | F43: =('Fund Proj - Consolidated'!K$13/10000)*(C43+(D43/2)+(E43/2)-(I43/2)) -> 3085578.786 | G43: ='Fund Proj - Consolidated'!K$11*(E43-F43) -> 25311932.66 | H43: 101247730.6 | I43: ='Fund Proj - Consolidated'!I55 -> 0 | J43: 2096856937
B44: ='Fund Proj - Consolidated'!B56 -> 2040 | C44: 2096856937 | D44: ='Fund Proj - Consolidated'!D56 -> 6758605.386 | E44: 136673802.2 | F44: =('Fund Proj - Consolidated'!K$13/10000)*(C44+(D44/2)+(E44/2)-(I44/2)) -> 3252859.71 | G44: ='Fund Proj - Consolidated'!K$11*(E44-F44) -> 26684188.49 | H44: 106736754 | I44: ='Fund Proj - Consolidated'!I56 -> 0 | J44: 2210352296
B45: ='Fund Proj - Consolidated'!B57 -> 2041 | C45: 2210352296 | D45: ='Fund Proj - Consolidated'!D57 -> 6758605.386 | E45: 144059562.9 | F45: =('Fund Proj - Consolidated'!K$13/10000)*(C45+(D45/2)+(E45/2)-(I45/2)) -> 3428642.07 | G45: ='Fund Proj - Consolidated'!K$11*(E45-F45) -> 28126184.16 | H45: 112504736.6 | I45: ='Fund Proj - Consolidated'!I57 -> 0 | J45: 2329615638
B46: ='Fund Proj - Consolidated'!B58 -> 2042 | C46: 2329615638 | D46: ='Fund Proj - Consolidated'!D58 -> 6758605.386 | E46: 151820677.6 | F46: =('Fund Proj - Consolidated'!K$13/10000)*(C46+(D46/2)+(E46/2)-(I46/2)) -> 3613357.919 | G46: ='Fund Proj - Consolidated'!K$11*(E46-F46) -> 29641463.93 | H46: 118565855.7 | I46: ='Fund Proj - Consolidated'!I58 -> 0 | J46: 2454940099
B47: ='Fund Proj - Consolidated'!B59 -> 2043 | C47: 2454940099 | D47: ='Fund Proj - Consolidated'!D59 -> 6758605.386 | E47: 159976222.3 | F47: =('Fund Proj - Consolidated'!K$13/10000)*(C47+(D47/2)+(E47/2)-(I47/2)) -> 3807461.269 | G47: ='Fund Proj - Consolidated'!K$11*(E47-F47) -> 31233752.21 | H47: 124935008.8 | I47: ='Fund Proj - Consolidated'!I59 -> 0 | J47: 2586633713
B48: ='Fund Proj - Consolidated'!B60 -> 2044 | C48: 2586633713 | D48: ='Fund Proj - Consolidated'!D60 -> 7091906.473 | E48: 166669844.1 | F48: =('Fund Proj - Consolidated'!K$13/10000)*(C48+(D48/2)+(E48/2)-(I48/2)) -> 3966770.604 | G48: ='Fund Proj - Consolidated'!K$11*(E48-F48) -> 32540614.69 | H48: 130162458.8 | I48: ='Fund Proj - Consolidated'!I60 -> 58001704.72 | J48: 2665886374
B49: ='Fund Proj - Consolidated'!B61 -> 2045 | C49: 2665886374 | D49: ='Fund Proj - Consolidated'!D61 -> 0 | E49: 162567903.8 | F49: =('Fund Proj - Consolidated'!K$13/10000)*(C49+(D49/2)+(E49/2)-(I49/2)) -> 3869143.729 | G49: ='Fund Proj - Consolidated'!K$11*(E49-F49) -> 31739752.01 | H49: 126959008 | I49: ='Fund Proj - Consolidated'!I61 -> 335482346.6 | J49: 2457363035
B50: ='Fund Proj - Consolidated'!B62 -> 2046 | C50: 2457363035 | D50: ='Fund Proj - Consolidated'!D62 -> 0 | E50: 141485254.4 | F50: =('Fund Proj - Consolidated'!K$13/10000)*(C50+(D50/2)+(E50/2)-(I50/2)) -> 3367373.092 | G50: ='Fund Proj - Consolidated'!K$11*(E50-F50) -> 27623576.27 | H50: 110494305.1 | I50: ='Fund Proj - Consolidated'!I62 -> 566380535.2 | J50: 2001476805
B51: ='Fund Proj - Consolidated'!B63 -> 2047 | C51: 2001476805 | D51: ='Fund Proj - Consolidated'!D63 -> 0 | E51: 110361431.9 | F51: =('Fund Proj - Consolidated'!K$13/10000)*(C51+(D51/2)+(E51/2)-(I51/2)) -> 2626620.828 | G51: ='Fund Proj - Consolidated'!K$11*(E51-F51) -> 21546962.21 | H51: 86187848.84 | I51: ='Fund Proj - Consolidated'!I63 -> 611153938.4 | J51: 1476510715
B52: ='Fund Proj - Consolidated'!B64 -> 2048 | C52: 1476510715 | D52: ='Fund Proj - Consolidated'!D64 -> 0 | E52: 82004304.15 | F52: =('Fund Proj - Consolidated'!K$13/10000)*(C52+(D52/2)+(E52/2)-(I52/2)) -> 1951716.37 | G52: ='Fund Proj - Consolidated'!K$11*(E52-F52) -> 16010517.56 | H52: 64042070.22 | I52: ='Fund Proj - Consolidated'!I64 -> 432737241.4 | J52: 1107815544
B53: ='Fund Proj - Consolidated'!B65 -> 2049 | C53: 1107815544 | D53: ='Fund Proj - Consolidated'!D65 -> 0 | E53: 58189322.91 | F53: =('Fund Proj - Consolidated'!K$13/10000)*(C53+(D53/2)+(E53/2)-(I53/2)) -> 1384915.771 | G53: ='Fund Proj - Consolidated'!K$11*(E53-F53) -> 11360881.43 | H53: 45443525.71 | I53: ='Fund Proj - Consolidated'!I65 -> 427266050.4 | J53: 725993019.6
B54: ='Fund Proj - Consolidated'!B66 -> 2050 | C54: 725993019.6 | D54: ='Fund Proj - Consolidated'!D66 -> 0 | E54: 36465499.88 | F54: =('Fund Proj - Consolidated'!K$13/10000)*(C54+(D54/2)+(E54/2)-(I54/2)) -> 867885.0922 | G54: ='Fund Proj - Consolidated'!K$11*(E54-F54) -> 7119522.957 | H54: 28478091.83 | I54: ='Fund Proj - Consolidated'!I66 -> 331271416.3 | J54: 423199695.2
B55: ='Fund Proj - Consolidated'!B67 -> 2051 | C55: 423199695.2 | D55: ='Fund Proj - Consolidated'!D67 -> 0 | E55: 21718534.94 | F55: =('Fund Proj - Consolidated'!K$13/10000)*(C55+(D55/2)+(E55/2)-(I55/2)) -> 516904.8212 | G55: ='Fund Proj - Consolidated'!K$11*(E55-F55) -> 4240326.023 | H55: 16961304.09 | I55: ='Fund Proj - Consolidated'!I67 -> 178911497 | J55: 261249502.3
B56: ='Fund Proj - Consolidated'!B68 -> 2052 | C56: 261249502.3 | D56: ='Fund Proj - Consolidated'!D68 -> 0 | E56: 9823821.77 | F56: =('Fund Proj - Consolidated'!K$13/10000)*(C56+(D56/2)+(E56/2)-(I56/2)) -> 233808.6271 | G56: ='Fund Proj - Consolidated'!K$11*(E56-F56) -> 1918002.629 | H56: 7672010.514 | I56: ='Fund Proj - Consolidated'!I68 -> 220577990.2 | J56: 48343522.58
B57: ='Fund Proj - Consolidated'!B69 -> 2053 | C57: 48343522.58 | D57: ='Fund Proj - Consolidated'!D69 -> 0 | E57: 1534007.912 | F57: =('Fund Proj - Consolidated'!K$13/10000)*(C57+(D57/2)+(E57/2)-(I57/2)) -> 36509.64891 | G57: ='Fund Proj - Consolidated'!K$11*(E57-F57) -> 299499.6526 | H57: 1197998.61 | I57: ='Fund Proj - Consolidated'!I69 -> 49541521.19 | J57: 3.971159458e-06
B58: ='Fund Proj - Consolidated'!B70 -> 2054 | C58: 3.971159458e-06 | D58: ='Fund Proj - Consolidated'!D70 -> 0 | E58: 2.584249581e-07 | F58: =('Fund Proj - Consolidated'!K$13/10000)*(C58+(D58/2)+(E58/2)-(I58/2)) -> 6.150557906e-09 | G58: ='Fund Proj - Consolidated'!K$11*(E58-F58) -> 5.045488004e-08 | H58: 2.018195201e-07 | I58: ='Fund Proj - Consolidated'!I70 -> 0 | J58: 4.172978978e-06
B59: ='Fund Proj - Consolidated'!B71 -> 2055 | C59: =J58 -> 4.172978978e-06 | D59: ='Fund Proj - Consolidated'!D71 -> 0 | E59: 2.715584526e-07 | F59: =('Fund Proj - Consolidated'!K$13/10000)*(C59+(D59/2)+(E59/2)-(I59/2)) -> 6.463137307e-09 | G59: ='Fund Proj - Consolidated'!K$11*(E59-F59) -> 5.301906306e-08 | H59: =E59-F59-G59 -> 2.120762522e-07 | I59: ='Fund Proj - Consolidated'!I71 -> 0 | J59: 4.385055231e-06
B61: TOTALS: | D61: =SUM(D18:D60) -> 186194948.9 | E61: 3111097947 | F61: 74037373.21 | G61: 607412114.7 | H61: 2429648459 | I61: 3211324241
